Workbook

Sheet 乡村振兴局
A1: 附件1：
A2: 洪江市 2023 年巩固拓展脱贫攻坚成果和乡村振兴项目库入库项目明细表
A3: 单位：（盖章） | S3: 时间： 2022 年 11 月10 日
A4: 序号 | B4: 项目名称 | C4: 项目类别 | F4: 建设 性质 | G4: 实施 地点 | H4: 时间进度 | J4: 责任单位 | K4: 建设内容及规模 | L4: 资金规模和筹资方式 | O4: 收益对象 | U4: 绩效目标 | V4: 联农带农机制 | W4: 备注
C5: 项目类型 | D5: 二级项目类型 | E5: 项目子类型 | L5: 项目预算总投资（万元） | M5: 其中 | O5: 受益 村数 （个） | P5: 受益 户数 （户） | Q5: 受益 人口数 （人） | R5: 其中
H6: 计划开工时间 | I6: 计划完工时间 | M6: 财政衔接资金（万元） | N6: 其他资金（万元） | R6: 受益 脱贫村数 （个） | S6: 受益 脱贫户数及防止返贫监测对象户数 （户） | T6: 受益脱贫人口数及防止返贫监测对象人口数 （人）
L7: =SUM(L8:L610) -> 33977.298 | M7: =SUM(M8:M610) -> 31688.598 | N7: =SUM(N8:N610) -> 2288.7
A8: 1 | B8: 2023年职业教育补助 | C8: 巩固三保障成果 | D8: 教育 | E8: 享受“雨露计划”职业教育补贴 | F8: 新建 | G8: 洪江市 | H8: 2023.1 | I8: 2023.12 | J8: 乡村振兴局 | K8: 2023年脱贫人口中高职职业教育补助2600人次 | L8: =M8+N8 -> 390 | M8: 390 | N8: 0 | O8: 210 | P8: 15017 | Q8: 49382 | R8: 75 | S8: 15017 | T8: 49382 | U8: 完成2600人次职业教育补贴， | V8: 教育补助脱贫人口，提高就业率 | W8: 乡村振兴局
A9: 2 | B9: 2023年创业致富带头人培训 | C9: 就业项目 | D9: 创业 | E9: 创业培训 | F9: 新建 | G9: 洪江市 | H9: 2023.1 | I9: 2023.12 | J9: 乡村振兴局 | K9: 2023年创业致富带头人培训144人 | L9: =M9+N9 -> 70 | M9: 70 | N9: 0 | O9: 210 | P9: 15017 | Q9: 49382 | R9: 75 | S9: 15017 | T9: 49382 | U9: 完成144人培训 | V9: 致富带头人带动群众发展经济 | W9: 乡村振兴局
A10: 3 | B10: 2023年公益性岗位人员意外伤害保险项目 | C10: 其他 | D10: 其他 | E10: 其他 | F10: 新建 | G10: 洪江市 | H10: 2023.1 | I10: 2023.12 | J10: 乡村振兴局 | K10: 2023年公益性岗位人员1229人按每人每年100元购买人身意外伤害保险 | L10: 12.29 | M10: 12.29 | N10: 0 | O10: 210 | P10: 15017 | Q10: 49382 | R10: 75 | S10: 15017 | T10: 49382 | U10: 完成购买1229人人身意外伤害保险 | V10: 公益性岗位人员保障 | W10: 乡村振兴局
A11: 4 | B11: 2023年小额信贷贴息 | C11: 产业发展 | D11: 金融保险配套 | E11: 小额信贷贴息 | F11: 新建 | G11: 洪江市 | H11: 2023.1 | I11: 2023.12 | J11: 乡村振兴局 | K11: 2023年度小额信贷贴息 | L11: 262 | M11: 262 | N11: 0 | O11: 210 | P11: 15017 | Q11: 49382 | R11: 75 | S11: 15017 | T11: 49382 | U11: 对贷款脱贫人口进行贴息 | V11: 脱贫人口贷款发展产业增收 | W11: 乡村振兴局
A12: 5 | B12: 项目管理费 | C12: 项目管理费 | D12: 项目管理费 | E12: 项目管理费 | F12: 新建 | G12: 洪江市 | H12: 2023.1 | I12: 2023.12 | J12: 乡村振兴局 | K12: 2023年度乡村振兴项目绩效评价、社会扶贫网管理及运营，与乡村振兴衔接资金项目管理相关的资料印刷等费用 | L12: 42 | M12: 42 | N12: 0 | O12: 210 | P12: 15017 | Q12: 49382 | R12: 75 | S12: 15017 | T12: 49382 | U12: 完成2023年度项目建设 | V12: 保障项目实施，吸纳群众务工及项目受益 | W12: 乡村振兴局
A13: 6 | B13: 2023年铁山乡公益性岗位项目 | C13: 就业项目 | D13: 公益性岗位 | E13: 公益性岗位 | F13: 新建 | G13: 铁山乡 | H13: 2023.1 | I13: 2023.12 | J13: 铁山乡人民政府 | K13: 2023年铁山乡公益性岗位43人 | L13: 31.476 | M13: 27.476 | N13: 4 | O13: 7 | P13: 43 | Q13: 43 | R13: 4 | S13: 43 | T13: 150 | U13: 提供公益性岗位43人，受益43户150人 | V13: 吸纳脱贫户就业43户，每人每年增收7320元， | W13: 乡村振兴局
A14: 7 | B14: 2023年岩垅乡公益性岗位项目 | C14: 就业项目 | D14: 公益性岗位 | E14: 公益性岗位 | F14: 新建 | G14: 岩垅乡 | H14: 2023.1 | I14: 2023.12 | J14: 岩垅乡人民政府 | K14: 2023年岩垅乡公益性岗位56人 | L14: 40.992 | M14: 39.992 | N14: 1 | O14: 9 | P14: 56 | Q14: 56 | R14: 1 | S14: 56 | T14: 190 | U14: 提供公益性岗位56人，受益56户190人 | V14: 吸纳脱贫户就业56户，每人每年增收7320元， | W14: 乡村振兴局
A15: 8 | B15: 2023年茅渡乡关冲村人居环境提升 | C15: 乡村建设行动 | D15: 人居环境整治 | E15: 村容村貌提升 | F15: 新建 | G15: 茅渡乡关冲村 | H15: 2023.1 | I15: 2023.12 | J15: 茅渡乡人民政府 | K15: 木桥组青山组关冲片区100平方基础建设，100平方木质亭子建设 | L15: 22.5 | M15: 22.5 | N15: 0 | O15: 1 | P15: 105 | Q15: 352 | R15: 0 | S15: 26 | T15: 83 | U15: 关冲村人居环境提升，受益105户，352人 | V15: 吸纳群众务工增收，改善人居环境， | W15: 乡村振兴局
A16: 9 | B16: 2023年茅渡乡鸭池村人居环境提升项目 | C16: 乡村建设行动 | D16: 人居环境整治 | E16: 村容村貌提升 | F16: 新建 | G16: 茅渡乡鸭池村 | H16: 2023.1 | I16: 2023.12 | J16: 茅渡乡人民政府 | K16: 2座凉亭，5处停车位，绿化200平方，护栏。 | L16: 34 | M16: 34 | N16: 0 | O16: 1 | P16: 184 | Q16: 594 | R16: 1 | S16: 37 | T16: 131 | U16: 鸭池村院落改造，受益184户，594人 | V16: 吸纳群众务工增收，改善人居环境， | W16: 乡村振兴局
A17: 10 | B17: 2023年茅渡乡茅渡村龙船坪、麻池美丽院落打造 | C17: 乡村建设行动 | D17: 人居环境整治 | E17: 村容村貌提升 | F17: 新建 | G17: 茅渡乡茅渡村 | H17: 2023.1 | I17: 2023.12 | J17: 茅渡乡人民政府 | K17: 入组道路扩宽、组级徒步路硬化长1000米宽1米厚10公分、休闲凉亭、公共停车场、增设路灯、绿化 | L17: 38 | M17: 38 | N17: 0 | O17: 1 | P17: 136 | Q17: 482 | R17: 1 | S17: 19 | T17: 91 | U17: 茅渡村龙船坪、麻池美丽院落打造，受益136户，482人 | V17: 吸纳群众务工增收，改善交通条件.改善人居环境。 | W17: 乡村振兴局
A18: 11 | B18: 2023年茅渡乡公益性岗位项目 | C18: 就业项目 | D18: 公益性岗位 | E18: 公益性岗位 | F18: 新建 | G18: 茅渡乡 | H18: 2023.1 | I18: 2023.12 | J18: 茅渡乡人民政府 | K18: 2023年茅渡乡公益性岗位42人 | L18: 30.744 | M18: 24.744 | N18: 6 | O18: 6 | P18: 42 | Q18: 42 | R18: 7 | S18: 42 | T18: 147 | U18: 提供公益性岗位42人，受益42户147人 | V18: 吸纳脱贫户就业42户，每人每年增收7320元， | W18: 乡村振兴局
A19: 12 | B19: 沅江村人居环境整治项目 | C19: 乡村建设行动 | D19: 人居环境整治 | E19: 农村卫生厕所改造 | F19: 新建 | G19: 黔城镇沅江村 | H19: 2023.1 | I19: 2023.12 | J19: 黔城镇人民政府 | K19: 新建公共厕所一座 | L19: 10 | M19: 10 | N19: 0 | O19: 1 | P19: 456 | Q19: 1576 | R19: 1 | S19: 111 | T19: 387 | U19: 新建公共厕所一座 | V19: 方便群众生产生活 | W19: 乡村振兴局
A20: 13 | B20: 长坡村天云洞游步道连接线建设项目 | C20: 乡村建设行动 | D20: 农村基础设施 | E20: 旅游路建设 | F20: 新建 | G20: 黔城镇长坡村 | H20: 2023.1 | I20: 2023.12 | J20: 黔城镇人民政府 | K20: 天云洞游步道连接线，长500米，宽1米 | L20: 15 | M20: 15 | N20: 0 | O20: 1 | P20: 574 | Q20: 1705 | R20: 1 | S20: 123 | T20: 412 | U20: 建设完成天云洞游步道连接线500米 | V20: 带动群众就业增收 | W20: 乡村振兴局
A21: 14 | B21: 2023年黔城镇公益性岗位项目 | C21: 就业项目 | D21: 公益性岗位 | E21: 公益性岗位 | F21: 新建 | G21: 黔城镇 | H21: 2023.1 | I21: 2023.12 | J21: 黔城镇人民政府 | K21: 2023年黔城镇公益性岗位150人 | L21: 109.8 | M21: 101.8 | N21: 8 | O21: 25 | P21: 150 | Q21: 509 | R21: 8 | S21: 48 | T21: 181 | U21: 公益性岗位150人 | V21: 帮助群众就业增收 | W21: 乡村振兴局
A22: 15 | B22: 蒿菜坪村新建围墙文化墙 | C22: 乡村建设行动 | D22: 人居环境整治 | E22: 村容村貌提升 | F22: 新建 | G22: 湾溪乡蒿菜坪村 | H22: 2023.1 | I22: 2023.12 | J22: 湾溪乡人民政府 | K22: 新建围墙文化墙100米 | L22: 4 | M22: 4 | N22: 0 | O22: 1 | P22: 382 | Q22: 1190 | R22: 1 | S22: 107 | T22: 372 | U22: 改善村容村貌，创建美丽乡村 | V22: 吸纳群众务工增收，改善生活条件，提升精神文化建设 | W22: 乡村振兴局
A23: 16 | B23: 2023年湾溪乡公益性岗位项目 | C23: 就业项目 | D23: 公益性岗位 | E23: 公益性岗位 | F23: 新建 | G23: 湾溪乡 | H23: 2023.1 | I23: 2023.12 | J23: 湾溪乡人民政府 | K23: 2023年湾溪乡公益性岗位50人 | L23: 36.6 | M23: 28.6 | N23: 8 | O23: 8 | P23: 50 | Q23: 120 | R23: 8 | S23: 150 | T23: 120 | U23: 公益性岗位受益50户，120人 | V23: 吸纳群众务工增收，改善生活条件 | W23: 乡村振兴局
A24: 17 | B24: 2023年雪峰镇公益性岗位项目 | C24: 就业项目 | D24: 公益性岗位 | E24: 公益性岗位 | F24: 新建 | G24: 雪峰镇 | H24: 2023.1 | I24: 2023.12 | J24: 雪峰镇人民政府 | K24: 2023年雪峰镇公益性岗位71人 | L24: 51.972 | M24: 49.972 | N24: 2 | O24: 12 | P24: 71 | Q24: 71 | R24: 2 | S24: 71 | T24: 213 | U24: 受益5645户，16763人 | V24: 解决部分村民就业，及脱贫户就业等 | W24: 乡村振兴局
A25: 18 | B25: 安江镇大桥村村周环境美化、亮化项目 | C25: 乡村建设行动 | D25: 人居环境整治 | E25: 村容村貌提升 | F25: 新建 | G25: 安江镇大桥村 | H25: 2023.1 | I25: 2023.12 | J25: 安江镇人民政府 | K25: 对村部门口及周围裸露空坪进行水泥硬化，面积约600平米。在村部门口空坪塘堤处安装护栏约40米。在荷花池塘堤铺设绿化游步道100米，栽植绿化景观树20株,建设绿化带100米。安装路灯四盏。对活动中心背后礼堂百姓舞台墙壁门窗进行维修整理在中团路口建立公交车招呼站一座。大桥村境内组道院落路灯安装100盏. | L25: 68 | M25: 68 | N25: 0 | O25: 1 | P25: 415 | Q25: 1147 | R25: 0 | S25: 48 | T25: 158 | U25: 项目完成后提升村部周围环境质量、带动全村人居环境全面提升,吸收脱贫务工2人。 | V25: 改善群众生活条件，吸收脱贫务工2人。 | W25: 乡村振兴局
A26: 19 | B26: 安江镇下坪村公厕修建项目 | C26: 乡村建设行动 | D26: 人居环境整治 | E26: 村卫生厕所改造(户用、公共厕所) | F26: 新建 | G26: 安江镇下坪村 | H26: 2023.1 | I26: 2023.12 | J26: 安江镇人民政府 | K26: 安江镇下坪村原（沅建）村部修建公厕一座；原（沅建）小学修公厕一座；河边修公厕两座；田心桥修公厕一座；研学基地修公厕一座； | L26: 60 | M26: 60 | N26: 0 | O26: 1 | P26: 585 | Q26: 2262 | R26: 0 | S26: 13 | T26: 60 | U26: 项目完成后每年将给受益村民带来2000元的增收，解决周边群众15人左右务工。 | V26: 吸纳群众务工增收，改善生活条件，促进乡村振兴。 | W26: 乡村振兴局
A27: 20 | B27: 安江镇两眼塘社区亮化工程 | C27: 乡村建设行动 | D27: 农村基础设施 | E27: 公共照明设施 | F27: 新建 | G27: 安江镇两眼塘社区 | H27: 2023.1 | I27: 2023.12 | J27: 安江镇人民政府 | K27: 新增路灯5盏 | L27: 1 | M27: 1 | N27: 0 | O27: 1 | P27: 70 | Q27: 158 | R27: 0 | S27: 2 | T27: 3 | U27: 受益70户，158人，消除安全隐患，改善人居环境 | V27: 改善生活环境 | W27: 乡村振兴局
A28: 21 | B28: 2023年安江镇公益性岗位项目 | C28: 就业项目 | D28: 公益性岗位 | E28: 公益性岗位 | F28: 新建 | G28: 安江镇 | H28: 2023.1 | I28: 2023.12 | J28: 安江镇人民政府 | K28: 2023年安江镇公益性岗位119人 | L28: 87.108 | M28: 85.108 | N28: 2 | O28: 24 | P28: 119 | Q28: 119 | R28: 2 | S28: 119 | T28: 416 | U28: 受益119户，416人 | V28: 解决部分村民就业，及脱贫户就业等 | W28: 乡村振兴局
A29: 22 | B29: 2023年岔头乡公益性岗位项目 | C29: 就业项目 | D29: 公益性岗位 | E29: 公益性岗位 | F29: 新建 | G29: 岔头乡 | H29: 2023.1 | I29: 2023.12 | J29: 岔头乡人民政府 | K29: 2023年岔头乡公益性岗位66人 | L29: 48.312 | M29: 42.312 | N29: 6 | O29: 10 | P29: 66 | Q29: 66 | R29: 6 | S29: 66 | T29: 230 | U29: 受益66户，230人 | V29: 解决部分村民就业，及脱贫户就业等 | W29: 乡村振兴局
A30: 23 | B30: 新田村坎脚坪移民点长廊建设 | C30: 乡村建设行动 | D30: 农村基础设施 | E30: 农村道路硬化 | F30: 新建 | G30: 托口镇新田村 | H30: 2023.1 | I30: 2023.12 | J30: 托口镇人民政府 | K30: 在移民点建木质长廊长50米，宽2.4米 | L30: 20 | M30: 20 | N30: 0 | O30: 1 | P30: 195 | Q30: 823 | R30: 1 | S30: 17 | T30: 60 | U30: 木质长廊50米，受益195户 823人 | V30: 改善居住条件，提高生活质量。 | W30: 乡村振兴局
A31: 24 | B31: 托口镇三里村新建沿湖便道 | C31: 乡村建设行动 | D31: 农村基础设施 | E31: 产业路、资源路、旅游路建设 | F31: 新建 | G31: 托口镇三里村 | H31: 2023.1 | I31: 2023.12 | J31: 托口镇人民政府 | K31: 修建长约7公里的沿湖便道 | L31: 30 | M31: 30 | N31: 0 | O31: 1 | P31: 1642 | Q31: 5060 | R31: 0 | S31: 79 | T31: 263 | U31: 收益1642户，5060人 | V31: 吸纳群众务工增收，改善交通条件，促进旅游发展 | W31: 乡村振兴局
A32: 25 | B32: 2023年托口镇公益性岗位项目 | C32: 就业项目 | D32: 公益性岗位 | E32: 公益性岗位 | F32: 新建 | G32: 托口镇 | H32: 2023.1 | I32: 2023.12 | J32: 托口镇人民政府 | K32: 2023年托口镇公益性岗位68人 | L32: 49.776 | M32: 47.776 | N32: 2 | O32: 10 | P32: 68 | Q32: 68 | R32: 2 | S32: 68 | T32: 240 | U32: 受益68户，240人 | V32: 解决部分村民就业，及脱贫户就业等 | W32: 乡村振兴局
A33: 26 | B33: 2023年江市镇公益性岗位项目 | C33: 就业项目 | D33: 公益性岗位 | E33: 公益性岗位 | F33: 新建 | G33: 江市镇 | H33: 2023.1 | I33: 2023.12 | J33: 江市镇人民政府 | K33: 2023年江市镇公益性岗位61人 | L33: 44.652 | M33: 42.652 | N33: 2 | O33: 6 | P33: 61 | Q33: 61 | R33: 2 | S33: 61 | T33: 214 | U33: 受益61户，214人 | V33: 解决部分村民就业，及脱贫户就业等 | W33: 乡村振兴局
A34: 27 | B34: 2023年深渡苗族乡公益性岗位项目 | C34: 就业项目 | D34: 公益性岗位 | E34: 公益性岗位 | F34: 新建 | G34: 深渡苗族乡 | H34: 2023.1 | I34: 2023.12 | J34: 深渡苗族乡人民政府 | K34: 2023年深渡苗族乡公益性岗位52人 | L34: 38.064 | M34: 34.064 | N34: 4 | O34: 9 | P34: 52 | Q34: 52 | R34: 4 | S34: 574 | T34: 1956 | U34: 改善环境卫生，提高生活质量。 | V34: 吸纳群众务工 | W34: 乡村振兴局
A35: 28 | B35: 2023年沅河镇公益性岗位项目 | C35: 就业项目 | D35: 公益性岗位 | E35: 公益性岗位 | F35: 新建 | G35: 沅河镇 | H35: 2023.1 | I35: 2023.12 | J35: 沅河镇人民政府 | K35: 2023年沅河镇公益性岗位47人 | L35: 34.404 | M35: 31.404 | N35: 3 | O35: 8 | P35: 47 | Q35: 125 | R35: 3 | S35: 47 | T35: 125 | U35: 带动脱贫户和监测户47户家庭人口务工，增加家庭收入，改善村庄面貌 | V35: 吸纳脱贫户及监测户务工，促进家庭收入增收 | W35: 乡村振兴局
A36: 29 | B36: 鄢家溪村垃圾回收分类店 | C36: 乡村建设行动 | D36: 人居环境整治 | E36: 农村垃圾治理 | F36: 新建 | G36: 沅河镇鄢家溪村 | H36: 2023.1 | I36: 2023.12 | J36: 沅河镇人民政府 | K36: 新建垃圾分类站房 | L36: 8 | M36: 8 | N36: 0 | O36: 1 | P36: 321 | Q36: 1075 | R36: 1 | S36: 37 | T36: 141 | U36: 新建垃圾分类站房收益人数1075人，吸纳农户务工。 | V36: 吸纳群众务工，促进产业增收 | W36: 乡村振兴局
A37: 30 | B37: 鄢家溪村公共厕所建设 | C37: 乡村建设行动 | D37: 人居环境整治 | E37: 农村卫生厕所改造 | F37: 新建 | G37: 沅河镇鄢家溪村 | H37: 2023.1 | I37: 2023.12 | J37: 沅河镇人民政府 | K37: 新建公共厕所建设10个蹲位 | L37: 5 | M37: 5 | N37: 0 | O37: 1 | P37: 321 | Q37: 1075 | R37: 1 | S37: 37 | T37: 141 | U37: 新建公共厕所建设10个蹲位 | V37: 吸纳群众务工，改善群众生活品质 | W37: 乡村振兴局
A38: 31 | B38: 沅城村景观改造 | C38: 乡村建设行动 | D38: 人居环境整治 | E38: 村容村貌提升 | F38: 改建 | G38: 沅河镇沅城村 | H38: 2023.1 | I38: 2023.12 | J38: 沅河镇人民政府 | K38: 对核心区域道路1公里进行双边绿化、改造美化。改造农户庭院10处，打造景观示范庭院。 | L38: 38 | M38: 38 | N38: 0 | O38: 1 | P38: 554 | Q38: 1361 | R38: 1 | S38: 38 | T38: 123 | U38: 对核心区域道路1公里进行双边绿化、改造美化。改造农户庭院10处，打造景观示范庭院 | V38: 吸纳群众务工，促进产业增收 | W38: 乡村振兴局
A39: 32 | B39: 沅城村巷道庭院改造 | C39: 乡村建设行动 | D39: 人居环境整治 | E39: 村容村貌提升 | F39: 改建 | G39: 沅河镇沅城村 | H39: 2023.1 | I39: 2023.12 | J39: 沅河镇人民政府 | K39: 拆除违建建筑20处，巷道改造、装饰农户房屋外立面等10处。 | L39: 37 | M39: 37 | N39: 0 | O39: 1 | P39: 554 | Q39: 1361 | R39: 1 | S39: 38 | T39: 123 | U39: 拆除违建建筑20处，巷道改造、装饰农户房屋外立面等10处。 | V39: 吸纳群众务工，促进人居环境治理 | W39: 乡村振兴局
A40: 33 | B40: 2023年龙船塘瑶族乡公益岗位项目 | C40: 就业项目 | D40: 公益性岗位 | E40: 公益性岗位 | F40: 新建 | G40: 龙船塘瑶族乡 | H40: 2023.1 | I40: 2023.12 | J40: 龙船塘瑶族乡人民政府 | K40: 2023年龙船塘瑶族乡公益性岗位41人 | L40: 30.012 | M40: 25.012 | N40: 5 | O40: 7 | P40: 41 | Q40: 41 | R40: 5 | S40: 3 | T40: 3 | U40: 发放41人公益性岗位工资 | V40: 发放41人公益性岗位工资 | W40: 乡村振兴局
A41: 34 | B41: 2023年洗马乡公益性岗位项目 | C41: 就业项目 | D41: 公益性岗位 | E41: 公益性岗位 | F41: 新建 | G41: 洗马乡 | H41: 2023.1 | I41: 2023.12 | J41: 洗马乡人民政府 | K41: 2023年洗马乡公益性岗位63人 | L41: 46.116 | M41: 44.116 | N41: 2 | O41: 11 | P41: 63 | Q41: 63 | R41: 2 | S41: 63 | T41: 63 | U41: 扶持全乡63人，人均增收7320元 | V41: 吸纳群众63人务工，每户年均增加收益7230元 | W41: 乡村振兴局
A42: 35 | B42: 2023年沙湾乡独田村人居环境整治 | C42: 乡村建设行动 | D42: 人居环境整治 | E42: 其他 | F42: 新建 | G42: 沙湾乡独田村 | H42: 2023.1 | I42: 2023.12 | J42: 沙湾乡人民政府 | K42: 独田村全村10个组人居环境整治 | L42: 30 | M42: 30 | N42: 0 | O42: 1 | P42: 300 | Q42: 1013 | R42: 0 | S42: 42 | T42: 130 | U42: 改善村容村貌，受益户数300户1013人 | V42: 吸纳群众务工增收，改善人居环境，提高生活质量 | W42: 乡村振兴局
A43: 36 | B43: 2023年沙湾乡公益性岗位项目 | C43: 就业项目 | D43: 公益性岗位 | E43: 公益性岗位 | F43: 新建 | G43: 沙湾乡 | H43: 2023.1 | I43: 2023.12 | J43: 沙湾乡人民政府 | K43: 2023年沙湾乡公益性岗位57人 | L43: 41.724 | M43: 40.724 | N43: 1 | O43: 8 | P43: 57 | Q43: 57 | R43: 1 | S43: 57 | T43: 200 | U43: 受益57户，200人 | V43: 解决部分村民就业，及脱贫户就业等 | W43: 乡村振兴局
A44: 37 | B44: 2023年塘湾镇公益性岗位项目 | C44: 就业项目 | D44: 公益性岗位 | E44: 公益性岗位 | F44: 新建 | G44: 塘湾镇 | H44: 2023.1 | I44: 2023.12 | J44: 塘湾镇人民政府 | K44: 2023年塘湾镇乡公益性岗位53人 | L44: 38.796 | M44: 33.796 | N44: 5 | O44: 9 | P44: 53 | Q44: 53 | R44: 5 | S44: 53 | T44: 185 | U44: 受益53户，185人 | V44: 解决部分村民就业，及脱贫户就业等 | W44: 乡村振兴局
A45: 38 | B45: 熟坪社区人居环境治理 | C45: 乡村建设行动 | D45: 人居环境整治 | E45: 村容村貌提升 | F45: 新建 | G45: 熟坪乡熟坪社区 | H45: 2023.1 | I45: 2023.12 | J45: 熟坪乡人民政府 | K45: 熟坪社区村庄的人居环境整治提升 | L45: 20 | M45: 20 | N45: 0 | O45: 1 | P45: 1207 | Q45: 3105 | R45: 1 | S45: 103 | T45: 347 | U45: 受益脱贫户数及防止返贫监测对象105户350人 | V45: 吸纳群众务工 | W45: 乡村振兴局
A46: 39 | B46: 2023年熟坪乡公益性岗位项目 | C46: 就业项目 | D46: 公益性岗位 | E46: 公益性岗位 | F46: 新建 | G46: 熟坪乡 | H46: 2023.1 | I46: 2023.12 | J46: 熟坪乡人民政府 | K46: 2023年铁山乡公益性岗位59人 | L46: 43.188 | M46: 39.188 | N46: 4 | O46: 10 | P46: 59 | Q46: 236 | R46: 4 | S46: 31 | T46: 105 | U46: 提供公益性岗位59人，受益59户236人 | V46: 吸纳脱贫户就业59户，每人每年增收7320元， | W46: 乡村振兴局
A47: 40 | B47: 2023年大崇乡公益性岗位项目 | C47: 就业项目 | D47: 公益性岗位 | E47: 公益性岗位 | F47: 新建 | G47: 大崇乡 | H47: 2023.1 | I47: 2023.12 | J47: 大崇乡人民政府 | K47: 2023年大崇乡公益性岗位41人 | L47: 30.012 | M47: 28.012 | N47: 2 | O47: 7 | P47: 41 | Q47: 41 | R47: 2 | S47: 41 | T47: 143 | U47: 提供公益性岗位41人，受益41户143人 | V47: 吸纳脱贫户就业59户，每人每年增收7320元， | W47: 乡村振兴局
A48: 41 | B48: 2023年太平乡公益性岗位项目 | C48: 就业项目 | D48: 公益性岗位 | E48: 公益性岗位 | F48: 新建 | G48: 太平乡 | H48: 2023.1 | I48: 2023.12 | J48: 太平乡人民政府 | K48: 2023年太平乡公益性岗位47人 | L48: 34.404 | M48: 32.404 | N48: 2 | O48: 8 | P48: 47 | Q48: 47 | R48: 2 | S48: 47 | T48: 165 | U48: 提供公益性岗位47人，受益47户165人 | V48: 吸纳脱贫户就业59户，每人每年增收7320元， | W48: 乡村振兴局
A49: 42 | B49: 2023年群峰乡公益性岗位项目 | C49: 就业项目 | D49: 公益性岗位 | E49: 公益性岗位 | F49: 新建 | G49: 群峰乡 | H49: 2023.1 | I49: 2023.12 | J49: 群峰乡人民政府 | K49: 2023年群峰乡公益性岗位43人 | L49: 31.476 | M49: 25.476 | N49: 6 | O49: 7 | P49: 43 | Q49: 43 | R49: 6 | S49: 43 | T49: 150 | U49: 受益43户150人 | V49: 吸纳脱贫户就业59户，每人每年增收7320元， | W49: 乡村振兴局
A50: 43 | B50: 2023年铁山乡苏宝顶村新建旅游公路 | C50: 产业发展 | D50: 配套设施项目 | E50: 休闲农业与乡村旅游 | F50: 新建 | G50: 铁山乡苏宝顶村 | H50: 2023.1 | I50: 2023.12 | J50: 铁山乡人民政府 | K50: 禾梨坪组龙坪山新建旅游公路2.5公里，宽6.5米。 | L50: 25 | M50: 25 | N50: 0 | O50: 1 | P50: 405 | Q50: 1323 | R50: 1 | S50: 88 | T50: 307 | U50: 新修公路2.5公里，受益405户，1323人 | V50: 吸纳群众务工增收，改善交通条件，促进旅游产业发展增收。 | W50: 交通运输局
A51: 44 | B51: 2023年铁山乡苏宝顶村组级公路硬化 | C51: 乡村建设行动 | D51: 农村基础设施 | E51: 农村道路建设（通村路、通户路等） | F51: 新建 | G51: 铁山乡苏宝顶村 | H51: 2023.1 | I51: 2023.12 | J51: 铁山乡人民政府 | K51: 白水洞组烟竹坪公路硬化3公里，宽3.5米，厚18公分。 | L51: 120 | M51: 120 | N51: 0 | O51: 1 | P51: 140 | Q51: 452 | R51: 1 | S51: 14 | T51: 50 | U51: 公路硬化3公里，受益140户，452人 | V51: 吸纳群众务工增收，改善交通条件，促进产业增收 | W51: 交通运输局
A52: 45 | B52: 2023年铁山乡袁家溪村公路硬化 | C52: 乡村建设行动 | D52: 农村基础设施 | E52: 产业路建设 | F52: 新建 | G52: 铁山乡袁家溪村 | H52: 2023.1 | I52: 2023.12 | J52: 铁山乡人民政府 | K52: 丫叉坡组至秋木坪公路硬化，2000米，宽3.5米，厚18公分 | L52: 85 | M52: 85 | N52: 0 | O52: 1 | P52: 386 | Q52: 1365 | R52: 1 | S52: 16 | T52: 52 | U52: 公路硬化2公里，受益386户，1365人 | V52: 吸纳群众务工增收，改善交通条件，促进产业增收 | W52: 交通运输局
A53: 46 | B53: 2023年铁山乡袁家溪村组级公路硬化 | C53: 乡村建设行动 | D53: 农村基础设施 | E53: 农村道路建设（通村路、通户路等） | F53: 新建 | G53: 铁山乡袁家溪村 | H53: 2023.1 | I53: 2023.12 | J53: 铁山乡人民政府 | K53: 王山坡至方田冲组公路硬化长1200米，宽3.5米，厚18公分 | L53: 45 | M53: 45 | N53: 0 | O53: 1 | P53: 60 | Q53: 170 | R53: 1 | S53: 10 | T53: 34 | U53: 公路硬化1.2公里，受益60户，170人 | V53: 吸纳群众务工增收，改善交通条件，促进产业增收 | W53: 交通运输局
A54: 47 | B54: 2023年铁山乡大段村堆子背球场至托田湾公路硬化 | C54: 乡村建设行动 | D54: 农村基础设施 | E54: 农村道路建设（通村路、通户路等） | F54: 新建 | G54: 铁山乡大段村 | H54: 2023.1 | I54: 2023.12 | J54: 铁山乡人民政府 | K54: 堆子背球场至托田湾硬化公路长500米，宽3.5米，厚18公分 | L54: 20 | M54: 20 | N54: 0 | O54: 1 | P54: 18 | Q54: 72 | R54: 0 | S54: 10 | T54: 30 | U54: 公路硬化0.5公里，受益18户，72人 | V54: 吸纳群众务工增收，改善交通条件，促进产业增收 | W54: 交通运输局
A55: 48 | B55: 2023年铁山乡大段村椅子湾至小山冲公路硬化 | C55: 乡村建设行动 | D55: 农村基础设施 | E55: 农村道路建设（通村路、通户路等） | F55: 新建 | G55: 铁山乡大段村 | H55: 2023.1 | I55: 2023.12 | J55: 铁山乡人民政府 | K55: 椅子湾至小山冲硬化公路长600米，宽3.5米，厚18公分 | L55: 25 | M55: 25 | N55: 0 | O55: 1 | P55: 24 | Q55: 86 | R55: 0 | S55: 2 | T55: 7 | U55: 公路硬化0.6公里，受益24户，86人 | V55: 吸纳群众务工增收，改善交通条件，促进产业增收 | W55: 交通运输局
A56: 49 | B56: 2023年铁山乡大段村胡家组至老梅冲公路硬化 | C56: 乡村建设行动 | D56: 农村基础设施 | E56: 农村道路建设（通村路、通户路等） | F56: 新建 | G56: 铁山乡大段村 | H56: 2023.1 | I56: 2023.12 | J56: 铁山乡人民政府 | K56: 胡家组至老梅冲公路硬化450米，宽3.5米，厚18公分， | L56: 18 | M56: 18 | N56: 0 | O56: 1 | P56: 22 | Q56: 84 | R56: 0 | S56: 4 | T56: 10 | U56: 公路硬化0.45公里，受益22户，84人 | V56: 吸纳群众务工增收，改善交通条件，促进产业增收 | W56: 交通运输局
A57: 50 | B57: 2023年铁山乡小溪村拖船冲组公路硬化 | C57: 乡村建设行动 | D57: 农村基础设施 | E57: 农村道路建设（通村路、通户路等） | F57: 新建 | G57: 铁山乡小溪村 | H57: 2023.1 | I57: 2023.12 | J57: 铁山乡人民政府 | K57: 拖船冲组组级公路硬化，长2公里，宽3.5米，厚18公分 | L57: 80 | M57: 80 | N57: 0 | O57: 1 | P57: 23 | Q57: 155 | R57: 0 | S57: 8 | T57: 24 | U57: 公路硬化2公里，受益23户，155人 | V57: 吸纳群众务工增收，改善交通条件，促进产业增收 | W57: 交通运输局
A58: 51 | B58: 2023年铁山乡小溪村晒谷岩组公路硬化 | C58: 乡村建设行动 | D58: 农村基础设施 | E58: 农村道路建设（通村路、通户路等） | F58: 新建 | G58: 铁山乡小溪村 | H58: 2023.1 | I58: 2023.12 | J58: 铁山乡人民政府 | K58: 晒谷岩组组级公路硬化，长2.5公里，宽3.5米，厚18公分 | L58: 100 | M58: 100 | N58: 0 | O58: 1 | P58: 40 | Q58: 142 | R58: 0 | S58: 10 | T58: 34 | U58: 公路硬化2.5公里，受益40户，142人 | V58: 吸纳群众务工增收，改善交通条件，促进产业增收 | W58: 交通运输局
A59: 52 | B59: 2023年铁山乡凉竹湾村白泥田公路硬化 | C59: 乡村建设行动 | D59: 农村基础设施 | E59: 农村道路建设（通村路、通户路等） | F59: 新建 | G59: 铁山乡凉竹湾村 | H59: 2023.1 | I59: 2023.12 | J59: 铁山乡人民政府 | K59: 白泥田组公路硬化及加固，硬化长880米，宽3.5米，厚1.8公分；加固长30米，宽1.5米，厚80公分。 | L59: 56 | M59: 56 | N59: 0 | O59: 1 | P59: 31 | Q59: 108 | R59: 0 | S59: 17 | T59: 38 | U59: 受益31户，108人 | V59: 吸纳群众务工增收，改善交通条件，促进产业增收 | W59: 交通运输局
A60: 53 | B60: 力丰村3组组级路硬化 | C60: 乡村建设行动 | D60: 农村基础设施 | E60: 农村道路建设 | F60: 新建 | G60: 岩垅乡力丰村 | H60: 2023.1 | I60: 2023.12 | J60: 岩垅乡人民政府 | K60: 3组鱼塘至丘塘盘地段硬化组级路长1200米，宽3米 | L60: 43.2 | M60: 43.2 | N60: 0 | O60: 1 | P60: 52 | Q60: 268 | R60: 0 | S60: 55 | T60: 184 | U60: 硬化组级路，改善农户生产生活条件，受益 脱贫户数及防止返贫监测对象户数55户，184人 | V60: 吸纳群众务工增收，改善交通条件，促进产业增收 | W60: 交通运输局
A61: 54 | B61: 十二组公路硬化工程 | C61: 乡村建设行动 | D61: 农村基础设施 | E61: 农村道路建设 | F61: 新建 | G61: 岩垅乡竹坪垅村 | H61: 2023.1 | I61: 2023.12 | J61: 岩垅乡人民政府 | K61: 青树小冲至马长发门口3.5M×0.18M×1500M硬化 | L61: 57 | M61: 57 | N61: 0 | O61: 1 | P61: 326 | Q61: 1159 | R61: 0 | S61: 24 | T61: 81 | U61: 改善交通条件保障农业生产便利，受益脱贫户及防止返贫监测对象24户，81人 | V61: 吸纳群众务工增收促进产业增收 | W61: 交通运输局
A62: 55 | B62: 青树村9组组级公路硬化 | C62: 乡村建设行动 | D62: 农村基础设施 | E62: 农村道路建设 | F62: 新建 | G62: 岩垅乡青树村 | H62: 2023.1 | I62: 2023.12 | J62: 岩垅乡人民政府 | K62: 组级公路硬化，全长300米，宽3.5米 | L62: 14 | M62: 14 | N62: 0 | O62: 1 | P62: 450 | Q62: 1490 | R62: 0 | S62: 37 | T62: 138 | U62: 改善出行生产条件，受益脱贫户数及防止返贫监测对象户数 37户，138人 | V62: 吸纳群众务工增收，改善交通条件，促进产业增收 | W62: 交通运输局
A63: 56 | B63: 青树村1组修建人行桥 | C63: 乡村建设行动 | D63: 农村基础设施 | E63: 产业路 | F63: 新建 | G63: 岩垅乡青树村 | H63: 2023.1 | I63: 2023.12 | J63: 岩垅乡人民政府 | K63: 青树村1组人行桥，方便群众通行，多年夙愿，计划建设2米宽桥面、总长20米 | L63: 5 | M63: 5 | N63: 0 | O63: 1 | P63: 450 | Q63: 1490 | R63: 0 | S63: 37 | T63: 138 | U63: 改善出行生产条件，受益脱贫户数及防止返贫监测对象户数37户，138人 | V63: 吸纳群众务工增收，改善交通条件，促进产业增收 | W63: 交通运输局
A64: 57 | B64: 2023年茅渡乡定坡村村组级公路硬化 | C64: 乡村建设行动 | D64: 农村基础设施 | E64: 农村道路建设（通村路、通户路等） | F64: 新建 | G64: 茅渡乡定坡村 | H64: 2023.1 | I64: 2023.12 | J64: 茅渡乡人民政府 | K64: 芒冬4组公路硬化0.8公里，宽3.5米，厚18公分。永红组公路硬化0.6公里，宽3.5米，厚18公分。 | L64: 64 | M64: 64 | N64: 0 | O64: 1 | P64: 504 | Q64: 1342 | R64: 1 | S64: 99 | T64: 311 | U64: 公路硬化1.4公里，受益504户，1342人 | V64: 吸纳群众务工增收，改善交通条件，促进产业增收 | W64: 交通运输局
A65: 58 | B65: 2023年茅渡乡关冲村组级公路提质改造 | C65: 乡村建设行动 | D65: 农村基础设施 | E65: 农村道路建设（通村路、通户路等） | F65: 提质改造 | G65: 茅渡乡关冲村 | H65: 2023.1 | I65: 2023.12 | J65: 茅渡乡人民政府 | K65: 大龙形溶溪口至沈家溪（黄狮洞电站）长1.5公里宽3.5米厚20公分 | L65: 68.5 | M65: 68.5 | N65: 0 | O65: 1 | P65: 95 | Q65: 213 | R65: 0 | S65: 20 | T65: 62 | U65: 关冲村组级公路提质改造，受益95户，213人 | V65: 吸纳群众务工增收，改善交通条件，促进产业增收 | W65: 交通运输局
A66: 59 | B66: 2023年茅渡乡中心村大唐组道路硬化 | C66: 乡村建设行动 | D66: 农村基础设施 | E66: 农村道路建设（通村路、通户路等） | F66: 新建 | G66: 茅渡乡中心村 | H66: 2023.1 | I66: 2023.12 | J66: 茅渡乡人民政府 | K66: 大唐组道路硬化长500米宽3.5厚20公分 | L66: 30 | M66: 30 | N66: 0 | O66: 1 | P66: 38 | Q66: 138 | R66: 1 | S66: 6 | T66: 32 | U66: 中心村大唐组道路硬化，受益38户，138人 | V66: 吸纳群众务工增收，改善交通条件，促进产业增收。 | W66: 交通运输局
A67: 60 | B67: 2023年茅渡乡颜容村村级公路提质改造 | C67: 乡村建设行动 | D67: 农村基础设施 | E67: 农村道路建设（通村路、通户路等） | F67: 改建 | G67: 茅渡乡颜容村 | H67: 2023.1 | I67: 2023.12 | J67: 茅渡乡人民政府 | K67: 进村公路提质改造5.8千米，C125公路仙福桥至颜容团寨 | L67: 50 | M67: 50 | N67: 0 | O67: 1 | P67: 286 | Q67: 830 | R67: 1 | S67: 79 | T67: 274 | U67: 颜容村村级公路提质改造，受益286户，830人 | V67: 吸纳群众务工增收，改善交通条件，降低产业运输成本，提高产业增收。 | W67: 交通运输局
A68: 61 | B68: 茶溪村道路硬化项目 | C68: 乡村建设行动 | D68: 农村基础设施 | E68: 农村道路建设 | F68: 新建 | G68: 黔城镇茶溪村 | H68: 2023.1 | I68: 2023.12 | J68: 黔城镇人民政府 | K68: 3组、13组、16组道路硬化，全长2600米，宽3.5米。 | L68: 115 | M68: 115 | N68: 0 | O68: 1 | P68: 738 | Q68: 2608 | R68: 0 | S68: 76 | T68: 237 | U68: 完成道路硬化2600米 | V68: 方便群众生产生活 | W68: 交通运输局
A69: 62 | B69: 红岩山村道路硬化 | C69: 乡村建设行动 | D69: 农村基础设施 | E69: 农村道路建设 | F69: 新建 | G69: 黔城镇红岩山村 | H69: 2023.1 | I69: 2023.12 | J69: 黔城镇人民政府 | K69: 王泥冲至门溪道路硬化 新开路基长200米，宽4米，砌坎夯实并硬化宽3.5米；硬化组道长270米，宽3.5米 | L69: 32 | M69: 32 | N69: 0 | O69: 1 | P69: 185 | Q69: 498 | R69: 1 | S69: 40 | T69: 135 | U69: 道路建成受益人口498人 | V69: 方便群众生产生活 | W69: 交通运输局
A70: 63 | B70: 江南村道路硬化项目 | C70: 乡村建设行动 | D70: 农村基础设施 | E70: 农村道路建设 | F70: 新建 | G70: 黔城镇江南村 | H70: 2023.1 | I70: 2023.12 | J70: 黔城镇人民政府 | K70: 13、14组道路硬化，长500米，宽3.5米。 | L70: 20 | M70: 20 | N70: 0 | O70: 1 | P70: 853 | Q70: 3286 | R70: 0 | S70: 114 | T70: 340 | U70: 完成道路硬化500米， | V70: 方便群众生产生活 | W70: 交通运输局
A71: 64 | B71: 三江村道路扩宽、硬化项目 | C71: 乡村建设行动 | D71: 农村基础设施 | E71: 村组道路硬化 | F71: 扩建 | G71: 黔城镇三江村 | H71: 2023.1 | I71: 2023.12 | J71: 黔城镇人民政府 | K71: 扩宽、硬化19组乱剁冲至蒿菜坳道路，长2500米×宽3.5米×厚0.2米 | L71: 125 | M71: 125 | N71: 0 | O71: 1 | P71: 195 | Q71: 422 | R71: 0 | S71: 18 | T71: 71 | U71: 完成道路扩宽、硬化2500米 | V71: 方便群众生产生活 | W71: 交通运输局
A72: 65 | B72: 山门新村15组道路硬化项目 | C72: 乡村建设行动 | D72: 农村基础设施 | E72: 村组道路硬化 | F72: 新建 | G72: 黔城镇山门新村 | H72: 2023.1 | I72: 2023.12 | J72: 黔城镇人民政府 | K72: 15组道路硬化，长2500米，宽3.5米 | L72: 105 | M72: 105 | N72: 0 | O72: 1 | P72: 850 | Q72: 2870 | R72: 0 | S72: 101 | T72: 324 | U72: 完成15组道路硬化2500米 | V72: 方便群众生产生活 | W72: 交通运输局
A73: 66 | B73: 山门新村20组道路硬化项目 | C73: 乡村建设行动 | D73: 农村基础设施 | E73: 村组道路硬化 | F73: 新建 | G73: 黔城镇山门新村 | H73: 2023.1 | I73: 2023.12 | J73: 黔城镇人民政府 | K73: 20组道路硬化，长2000米，宽3.5米 | L73: =M73+N73 -> 84 | M73: 84 | N73: 0 | O73: 1 | P73: 850 | Q73: 2870 | R73: 0 | S73: 102 | T73: 325 | U73: 完成15组道路硬化2000米 | V73: 方便群众生产生活 | W73: 交通运输局
A74: 67 | B74: 桃源村道路、拓宽硬化项目 | C74: 乡村建设行动 | D74: 农村基础设施 | E74: 农村道路建设 | F74: 扩建 | G74: 黔城镇桃源村 | H74: 2023.1 | I74: 2023.12 | J74: 黔城镇人民政府 | K74: 1组洞脚道路拓宽、硬化，全长25米，宽3米；6组詹家冲道路拓宽、硬化长45米，宽2米。 | L74: 10 | M74: 10 | N74: 0 | O74: 1 | P74: 570 | Q74: 1931 | R74: 1 | S74: 135 | T74: 471 | U74: 完成道拓宽、路硬化70米 | V74: 方便群众生产生活 | W74: 交通运输局
A75: 68 | B75: 小江村道路拓宽项目 | C75: 乡村建设行动 | D75: 农村基础设施 | E75: 农村道路建设 | F75: 扩建 | G75: 黔城镇小江村 | H75: 2023.1 | I75: 2023.12 | J75: 黔城镇人民政府 | K75: 16、17、18组道路拓宽，长280米，坎7米*1.3米。 | L75: 90 | M75: 90 | N75: 0 | O75: 1 | P75: 1080 | Q75: 3750 | R75: 0 | S75: 69 | T75: 197 | U75: 拓宽道路280米，坎7米*1.3米 | V75: 方便群众生产生活 | W75: 交通运输局
A76: 69 | B76: 小阳村9组道路硬化项目 | C76: 乡村建设行动 | D76: 农村基础设施 | E76: 农村道路建设 | F76: 新建 | G76: 黔城镇小阳村 | H76: 2023.1 | I76: 2023.12 | J76: 黔城镇人民政府 | K76: 9组道路硬化，长800米，宽3.5米。 | L76: 34 | M76: 34 | N76: 0 | O76: 1 | P76: 625 | Q76: 1936 | R76: 0 | S76: 50 | T76: 150 | U76: 完成道路硬化800米 | V76: 方便群众生产生活 | W76: 交通运输局
A77: 70 | B77: 小阳村10组道路硬化项目 | C77: 乡村建设行动 | D77: 农村基础设施 | E77: 农村道路建设 | F77: 新建 | G77: 黔城镇小阳村 | H77: 2023.1 | I77: 2023.12 | J77: 黔城镇人民政府 | K77: 10组道路硬化，长1100米，宽3.6米。 | L77: 47 | M77: 47 | N77: 0 | O77: 1 | P77: 625 | Q77: 1936 | R77: 0 | S77: 50 | T77: 150 | U77: 完成道路硬化1100米 | V77: 方便群众生产生活 | W77: 交通运输局
A78: 71 | B78: 长坡村道路硬化项目 | C78: 乡村建设行动 | D78: 农村基础设施 | E78: 农村道路建设 | F78: 新建 | G78: 黔城镇长坡村 | H78: 2023.1 | I78: 2023.12 | J78: 黔城镇人民政府 | K78: 17组公路硬化，长210米，宽3.5米 | L78: 12 | M78: 12 | N78: 0 | O78: 1 | P78: 574 | Q78: 1705 | R78: 1 | S78: 123 | T78: 412 | U78: 完成17组公路硬化210米 | V78: 放便群众生产生活 | W78: 交通运输局
A79: 72 | B79: 土溪村道路路硬化项目 | C79: 乡村建设行动 | D79: 农村基础设施 | E79: 农村道路建设 | F79: 新建 | G79: 黔城镇土溪村 | H79: 2023.1 | I79: 2023.12 | J79: 黔城镇人民政府 | K79: 1组、2组道路硬化，长1500米，宽3.5米。 | L79: 70 | M79: 70 | N79: 0 | O79: 1 | P79: 780 | Q79: 2781 | R79: 1 | S79: 192 | T79: 710 | U79: 完成道路硬化1500米 | V79: 方便群众生产生活 | W79: 交通运输局
A80: 73 | B80: 大马村道路扩宽、硬化项目 | C80: 乡村建设行动 | D80: 农村基础设施 | E80: 农村道路建设 | F80: 扩建 | G80: 黔城镇大马村 | H80: 2023.1 | I80: 2023.12 | J80: 黔城镇人民政府 | K80: 王家坪至马路界道路扩宽、硬化，长5公里，宽2米 | L80: 190 | M80: 190 | N80: 0 | O80: 1 | P80: 1247 | Q80: 4350 | R80: 0 | S80: 89 | T80: 270 | U80: 道路扩宽、硬化5公里 | V80: 放便群众生产生活 | W80: 交通运输局
A81: 74 | B81: 古峰山麻坡坳集中安置点通址公路硬化 | C81: 乡村建设行动 | D81: 农村基础设施 | E81: 农村道路建设 | F81: 新建 | G81: 湾溪乡古峰山村 | H81: 2023.1 | I81: 2023.12 | J81: 湾溪乡人民政府 | K81: 古峰山麻坡坳集中安置点通址公路硬化180米 | L81: 20 | M81: 20 | N81: 0 | O81: 1 | P81: 30 | Q81: 82 | R81: 1 | S81: 11 | T81: 26 | U81: 公路硬化项目受益30户82人 | V81: 吸纳群众务工增收，改善生活条件 | W81: 交通运输局
A82: 75 | B82: 雪峰镇公坪村道路硬化 | C82: 乡村建设行动 | D82: 农村基础设施 | E82: 农村道路建设 | F82: 硬化 | G82: 雪峰镇公坪村 | H82: 2023.1 | I82: 2023.12 | J82: 雪峰镇人民政府 | K82: 船形组至母溪村贺家洞组联村公路道路硬化1000米，宽3.5米，厚18公分 | L82: 25 | M82: 25 | N82: 0 | O82: 1 | P82: 256 | Q82: 780 | R82: 0 | S82: 42 | T82: 158 | U82: 公路硬化1公里，受益256户，780人 | V82: 解决村民出行方便及运输农产品等 | W82: 交通运输局
A83: 76 | B83: 2023年雪峰镇大坪社区上岩头、松树潭组团寨公路硬化 | C83: 乡村建设行动 | D83: 农村基础设施 | E83: 农村道路建设（通村路、通户路等） | F83: 新建 | G83: 雪峰镇大坪社区 | H83: 2023.1 | I83: 2023.12 | J83: 雪峰镇人民政府 | K83: 上岩头组至松树潭组道路硬化800米，宽4.5米，厚度20公分 | L83: 40 | M83: 40 | N83: 0 | O83: 1 | P83: 92 | Q83: 335 | R83: 0 | S83: 8 | T83: 24 | U83: 公路硬化800米，受益92户，335人 | V83: 吸纳群众务工增收，改善交通条件，提高生活品质 | W83: 交通运输局
A84: 77 | B84: 雪峰中心学校门口道路扩宽 | C84: 乡村建设行动 | D84: 农村基础设施 | F84: 新建 | G84: 雪峰镇大坪社区 | H84: 2023.1 | I84: 2023.12 | J84: 雪峰镇人民政府 | K84: 320国道至雪峰中心学校门口道路扩宽500米 | L84: 20 | M84: 20 | N84: 0 | O84: 1 | P84: 798 | Q84: 2341 | R84: 0 | S84: 79 | T84: 226 | U84: 公路扩宽500米收益798户2341人 | V84: 解决村民出行方便及运输农产品等 | W84: 交通运输局
A85: 78 | B85: 组级公路硬化 | C85: 乡村建设行动 | D85: 农村基础设施 | E85: 农村道路建设（通村路、通户路等） | F85: 新建 | G85: 雪峰镇车力溪村 | H85: 2023.1 | I85: 2023.12 | J85: 雪峰镇人民政府 | K85: 硬化320国道至小冲组公路长1500米，宽4.5米、厚18公分 | L85: 75 | M85: 75 | N85: 0 | O85: 1 | P85: 28 | Q85: 137 | R85: 0 | S85: 6 | T85: 20 | U85: 公路硬化1.5公里受益28户，137人 | V85: 解决村民出行方便及运输农产品等 | W85: 交通运输局
A86: 79 | B86: 新修组级公路 | C86: 乡村建设行动 | D86: 农村基础设施 | E86: 农村道路建设（通村路、通户路等） | F86: 新建 | G86: 雪峰镇车力溪村 | H86: 2023.1 | I86: 2023.12 | J86: 雪峰镇人民政府 | K86: 新修村道至草对冲组公路长500米，宽5米 | L86: 5 | M86: 5 | N86: 0 | O86: 1 | P86: 46 | Q86: 175 | R86: 0 | S86: 12 | T86: 34 | U86: 新建公路0.5公里受益46户，175人 | V86: 解决村民出行方便及运输农产品等 | W86: 交通运输局
A87: 80 | B87: 村级公路维修 | C87: 乡村建设行动 | D87: 农村基础设施 | E87: 农村道路路面建设 | F87: 改建 | G87: 雪峰镇母溪村 | H87: 2023.1 | I87: 2023.12 | J87: 雪峰镇人民政府 | K87: 两达界（公坪与母溪入村公路交界处）至野鸡湾（村部）公路路面维修，长5000米，宽4.5米，厚0.05米 | L87: 30 | M87: 30 | N87: 0 | O87: 1 | P87: 366 | Q87: 1177 | R87: 1 | S87: 101 | T87: 377 | U87: 村级公路维修5000米，铺硬化1.1公里，受益140户，426人 | V87: 吸纳群众务工增收，改善生产、生活条件，促进产业发展增收 | W87: 交通运输局
A88: 81 | B88: 2023年安江镇洪溪村站坡田至军田垅组级公路硬化 | C88: 乡村建设行动 | D88: 农村基础设施 | E88: 产业路、资源路、旅游路建设 | F88: 新建 | G88: 安江镇洪溪村 | H88: 2023.1 | I88: 2023.12 | J88: 安江镇人民政府 | K88: 洪溪村站坡田至军田垅4组组级公路硬化项目，长1.6公里，4米宽，厚度为0.2米 | L88: 76.8 | M88: 76.8 | N88: 0 | O88: 1 | P88: 71 | Q88: 225 | R88: 1 | S88: 2 | T88: 7 | U88: 解决群众出行问题，方便农业、林业、集体油茶林发展，每户创收4000元 | V88: 改善交通条件，方便农业生产。促进1500亩杉木林地、140亩农田产业发展增收。 | W88: 交通运输局
A89: 82 | B89: 2023年安江镇洪溪村九组水井湾至兔田公路硬化 | C89: 乡村建设行动 | D89: 农村基础设施 | E89: 产业路、资源路、旅游路建设 | F89: 新建 | G89: 安江镇洪溪村 | H89: 2023.1 | I89: 2023.12 | J89: 安江镇人民政府 | K89: 洪溪村九组水井湾至兔田公路硬化项目，长350米，宽3.5米，厚0.2米， | L89: 14.7 | M89: 14.7 | N89: 0 | O89: 1 | P89: 23 | Q89: 96 | R89: 1 | S89: 1 | T89: 3 | U89: 解决群众出行问题，方便农业、林业，每户创收2000元 | V89: 改善交通条件，方便农业生产。促进400亩杉木林地、60亩农田产业发展增收。 | W89: 交通运输局
A90: 83 | B90: 安江镇大桥村组级公路硬化建设项目 | C90: 乡村建设行动 | D90: 农村基础设施 | E90: 农村道路建设 | F90: 新建 | G90: 安江镇大桥村 | H90: 2023.1 | I90: 2023.12 | J90: 安江镇人民政府 | K90: 安江镇大桥村向坡田组至山牛冲组公路硬化3000米，宽3.5米，厚0.18米 | L90: 126 | M90: 126 | N90: 0 | O90: 1 | P90: 230 | Q90: 800 | R90: 0 | S90: 13 | T90: 39 | U90: 项目完成后将给收益群众出行产业发展带来便捷、每年每户增收2000元，吸收群众务工6人。 | V90: 吸纳群众务工增收，改善交通条件，促进旅游产业发展增收。 | W90: 交通运输局
A91: 84 | B91: 安江镇高阳村杨桐坡公路硬化项目 | C91: 乡村建设行动 | D91: 农村基础设施 | E91: 农村道路建设 | F91: 续建 | G91: 安江镇高阳村 | H91: 2023.1 | I91: 2023.12 | J91: 安江镇人民政府 | K91: 硬化安江镇高阳村毛坡垴至婆田村杨桐坡公路1735米，宽度3.5米，砌坎43米（高度1.5米），投资规模70万元。 | L91: 70 | M91: 70 | N91: 0 | O91: 2 | P91: 372 | Q91: 1800 | R91: 1 | S91: 16 | T91: 60 | U91: 硬化公路1735米，受益372户，1800人 | V91: 改善交通条件，促进产业发展 | W91: 交通运输局
A92: 85 | B92: 2023年安江镇白虎脑社区尖峰脑道路硬化 | C92: 乡村建设行动 | D92: 农村基础设施 | E92: 农村道路建设（通村路、通户路等） | F92: 新建 | G92: 安江镇白虎脑社区 | H92: 2023.1 | I92: 2023.12 | J92: 安江镇人民政府 | K92: 尖峰脑泥结石路面1000m×3.5m | L92: 40 | M92: 40 | N92: 0 | O92: 1 | P92: 1276 | Q92: 3231 | R92: 1 | S92: 66 | T92: 198 | U92: 道路硬化1000米，受益1276户，3231人 | V92: 改善农业生产条件，促进群众粮食作物增收 | W92: 交通运输局
A93: 86 | B93: 2023年安江镇白虎脑社区岩山脚修建生活桥 | C93: 乡村建设行动 | D93: 农村基础设施 | E93: 农村道路建设（通村路、通户路等） | F93: 新建 | G93: 安江镇白虎脑社区 | H93: 2023.1 | I93: 2023.12 | J93: 安江镇人民政府 | K93: 岩山脚生活生产桥水泥钢筋结构5*9m | L93: 14 | M93: 14 | N93: 0 | O93: 1 | P93: 195 | Q93: 502 | R93: 1 | S93: 8 | T93: 28 | U93: 修建生活桥一座，受益195，受益502人 | V93: 改善农业生产条件，促进群众粮食作物增收 | W93: 交通运输局
A94: 87 | B94: 安江镇婆田村4组公路硬化 | C94: 乡村建设行动 | D94: 农村基础设施 | E94: 产业路、资源路、旅游路建设 | F94: 新建 | G94: 安江镇婆田村 | H94: 2023.1 | I94: 2023.12 | J94: 安江镇人民政府 | K94: 4组公路硬化长300米，宽3.5米，厚0.2米 | L94: 18 | M94: 18 | N94: 0 | O94: 1 | P94: 57 | Q94: 159 | R94: 0 | S94: 13 | T94: 26 | U94: 道路硬化300米，受益57户159人 | V94: 改善农业生产，促进群众粮食作物增收 | W94: 交通运输局
A95: 88 | B95: 安江镇助溪村小辉桥项目 | C95: 乡村建设行动 | D95: 农村基础设施 | E95: 农村道路 建设 | F95: 新建 | G95: 安江镇助溪村 | H95: 2023.1 | I95: 2023.12 | J95: 安江镇人民政府 | K95: 码簑线安岔公路1.5公里小辉桥新建，水泥钢筋结构长10米、4.5米宽 | L95: 20 | M95: 20 | N95: 0 | O95: 1 | P95: 270 | Q95: 720 | R95: 0 | S95: 52 | T95: 148 | U95: 项目完成后方便群众出行，利于农产品运输 | V95: 改善农业生产，促进群众粮食作物增收 | W95: 交通运输局
A96: 89 | B96: 赤溪村组级公路硬化 | C96: 乡村建设行动 | D96: 农村基础设施 | E96: 农村道路建设（通村路、通户路等） | F96: 新建 | G96: 大崇乡赤溪村 | H96: 2023.1 | I96: 2023.12 | J96: 大崇乡人民政府 | K96: 代田冲组公路硬化长450米，宽3.5米 | L96: 20 | M96: 20 | N96: 0 | O96: 1 | P96: 404 | Q96: 1132 | R96: 0 | S96: 46 | T96: 148 | U96: 硬化长450米 | V96: 吸纳群众务工 | W96: 交通运输局
A97: 90 | B97: 付家组至和平村平头组通村路 | C97: 乡村建设行动 | D97: 农村基础设施 | E97: 农村道路建设 | F97: 新建 | G97: 大崇乡民主村 | H97: 2023.1 | I97: 2023.12 | J97: 大崇乡人民政府 | K97: 付家组至和平村平头组新建通村路长50米，宽3.5米，需要铺砂石；砌坎2处,（1）、长30米，高5米、（2）、长50米，高2米 | L97: 9 | M97: 9 | N97: 0 | O97: 2 | P97: 122 | Q97: 370 | R97: 0 | S97: 15 | T97: 48 | U97: 新建连接桥梁产业路长50米，宽3.5米；砌坎2处,（1）、长30米，高5米、（2）、长50米，高2米 | V97: 吸纳群众务工 | W97: 交通运输局
A98: 91 | B98: 龙潭洞渠道公路扩宽 | C98: 乡村建设行动 | D98: 农村基础设施 | E98: 农村道路建设 | F98: 新建 | G98: 大崇乡盘龙村 | H98: 2023.1 | I98: 2023.12 | J98: 大崇乡人民政府 | K98: 盘龙村龙潭洞公路吊水洞至龙潭洞：1、渠道公路扩宽500米；2、硬化长500米，宽1米，厚20公分。3、砌坎长500米,1米宽，高1.5米 | L98: 29 | M98: 29 | N98: 0 | O98: 1 | P98: 256 | Q98: 753 | R98: 1 | S98: 97 | T98: 311 | U98: 扩宽500米 | V98: 吸纳群众务工 | W98: 交通运输局
A99: 92 | B99: 团坡组级公路提质改造 | C99: 乡村建设行动 | D99: 农村基础设施 | E99: 农村道路建设 | F99: 新建 | G99: 大崇乡和平村 | H99: 2023.1 | I99: 2023.12 | J99: 大崇乡人民政府 | K99: 对和平村团坡组3000米组级公路全域扩宽1米 | L99: 30 | M99: 30 | N99: 0 | O99: 1 | P99: 751 | Q99: 2292 | R99: 0 | S99: 92 | T99: 292 | U99: 3000米组级公路全域扩宽1米 | V99: 吸纳群众务工20人 | W99: 交通运输局
A100: 93 | B100: 群峰乡上洞村组级道路硬化项目 | C100: 乡村建设行动 | D100: 农村基础设施 | E100: 公路硬化 | F100: 新建 | G100: 群峰乡上洞村 | H100: 2023.1 | I100: 2023.12 | J100: 群峰乡人民政府 | K100: 对群峰乡上洞村草泥溪组1公里组级公路进行硬化 | L100: 20 | M100: 20 | N100: 0 | O100: 1 | P100: 251 | Q100: 877 | R100: 1 | S100: 71 | T100: 278 | U100: 新修公路1公里，受益251户，877人。 | V100: 吸纳群众务工增收，改善交通条件，促进乡镇发展。 | W100: 交通运输局
A101: 94 | B101: 群峰乡上洞村桥梁建设项目 | C101: 乡村建设行动 | D101: 农村基础设施 | E101: 其他 | F101: 新建 | G101: 群峰乡上洞村 | H101: 2023.1 | I101: 2023.12 | J101: 群峰乡人民政府 | K101: 在群峰乡上洞村草泥溪组修建20米长，5米宽平板桥一座 | L101: 30 | M101: 30 | N101: 0 | O101: 1 | P101: 251 | Q101: 877 | R101: 1 | S101: 71 | T101: 278 | U101: 新修平板桥1座，受益251户，877人。 | V101: 吸纳群众务工增收，改善交通条件，促进乡镇发展。 | W101: 交通运输局
A102: 95 | B102: 群峰乡木洒溪村通村公路硬化项目 | C102: 乡村建设行动 | D102: 农村基础设施 | E102: 公路硬化 | F102: 新建 | G102: 群峰乡木洒溪村 | H102: 2023.1 | I102: 2023.12 | J102: 群峰乡人民政府 | K102: 对群峰乡木洒溪村木洒溪到外口溪1300米村级公路进行硬化 | L102: 65 | M102: 65 | N102: 0 | O102: 1 | P102: 458 | Q102: 1604 | R102: 1 | S102: 93 | T102: 340 | U102: 新修公路1300米，受益458户，1604人。 | V102: 吸纳群众务工增收，改善交通条件，促进乡镇发展。 | W102: 交通运输局
A103: 96 | B103: 群峰乡杨柳村组级公路硬化 | C103: 乡村建设行动 | D103: 农村基础设施 | E103: 公路硬化 | F103: 新建 | G103: 群峰乡杨柳村 | H103: 2023.1 | I103: 2023.12 | J103: 群峰乡人民政府 | K103: 刘家冲组级公路硬化250米 | L103: 10 | M103: 10 | N103: 0 | O103: 1 | P103: 10 | Q103: 36 | R103: 1 | S103: 5 | T103: 13 | U103: 组级公路硬化200米受益19户，36人 | V103: 改善农民生产条件，促进农业发展 | W103: 交通运输局
A104: 97 | B104: 群峰乡杨柳村组级公路硬化 | C104: 乡村建设行动 | D104: 农村基础设施 | E104: 公路硬化 | F104: 新建 | G104: 群峰乡杨柳村 | H104: 2023.1 | I104: 2023.12 | J104: 群峰乡人民政府 | K104: 高一至高坪组级公路硬化450米 | L104: 19 | M104: 19 | N104: 0 | O104: 1 | P104: 41 | Q104: 135 | R104: 1 | S104: 12 | T104: 47 | U104: 组级公路硬化450米受益41户，135人 | V104: 改善农民生产条件，促进农业发展 | W104: 交通运输局
A105: 98 | B105: 群峰乡杨柳村组级公路硬化 | C105: 乡村建设行动 | D105: 农村基础设施 | E105: 公路硬化 | F105: 新建 | G105: 群峰乡杨柳村 | H105: 2023.1 | I105: 2023.12 | J105: 群峰乡人民政府 | K105: 羊坡组200米、杨柳田180米 寿田冲200米、红家田130米 | L105: 30 | M105: 30 | N105: 0 | O105: 1 | P105: 699 | Q105: 1753 | R105: 1 | S105: 144 | T105: 550 | U105: 组级公路硬化710米受益699户，1753人 | V105: 改善农民生产条件，促进农业发展 | W105: 交通运输局
A106: 99 | B106: 群峰乡龙山田村村级公路硬化项目 | C106: 乡村建设行动 | D106: 农村基础设施 | E106: 公路硬化 | F106: 新建 | G106: 群峰乡龙山田村 | H106: 2023.1 | I106: 2023.12 | J106: 群峰乡人民政府 | K106: 龙山田下同心组丫杈田-大田湾村公里硬化1公里 | L106: 35 | M106: 35 | N106: 0 | O106: 1 | P106: 312 | Q106: 1094 | R106: 1 | S106: 107 | T106: 334 | U106: 村级公路硬化1000米受益312户，1094人。 | V106: 吸纳群众务工增收，改善交通条件，促进乡镇发展。 | W106: 交通运输局
A107: 100 | B107: 群峰乡龙山田村组级公路硬化项目 | C107: 乡村建设行动 | D107: 农村基础设施 | E107: 公路硬化 | F107: 新建 | G107: 群峰乡龙山田村 | H107: 2023.1 | I107: 2023.12 | J107: 群峰乡人民政府 | K107: 龙山田村上圳阳两家田—拉局湾组组级公路硬化1公里 | L107: 35 | M107: 35 | N107: 0 | O107: 1 | P107: 312 | Q107: 1094 | R107: 1 | S107: 107 | T107: 334 | U107: 组级公路硬化1000米受益312户，1094人。 | V107: 改善农民生产条件，促进农业发展 | W107: 交通运输局
A108: 101 | B108: 大年溪村翁溪危桥改建 | C108: 乡村建设行动 | D108: 农村基础设施 | E108: 农村桥梁建设 | F108: 改建 | G108: 岔头乡大年溪村 | H108: 2023.1 | I108: 2023.12 | J108: 岔头乡人民政府 | K108: 翁溪桥梁改建，长15米宽4.5米 | L108: 30 | M108: 30 | N108: 0 | O108: 1 | P108: 100 | Q108: 385 | R108: 1 | S108: 43 | T108: 125 | U108: 改建桥梁1座，受益100户，385人 | V108: 吸纳群众务工增收，改善交通条件，促进产业增收 | W108: 交通运输局
A109: 102 | B109: 大年溪村新建洞里水库公路 | C109: 乡村建设行动 | D109: 农村基础设施 | E109: 农村道路建设 | F109: 新建 | G109: 岔头乡大年溪村 | H109: 2023.1 | I109: 2023.12 | J109: 岔头乡人民政府 | K109: 大年溪村新建洞里水库公路，长2500米*宽4.5米 | L109: 15 | M109: 15 | N109: 0 | O109: 1 | P109: 100 | Q109: 385 | R109: 1 | S109: 43 | T109: 125 | U109: 新修公路2.5公里，受益100户，385人 | V109: 吸纳群众务工增收，改善交通条件，促进产业增收 | W109: 交通运输局
A110: 103 | B110: 大沅村岩板滩公路桥 | C110: 乡村建设行动 | D110: 农村基础设施 | E110: 农村桥梁建设 | F110: 新建 | G110: 岔头乡大沅村 | H110: 2023.1 | I110: 2023.12 | J110: 岔头乡人民政府 | K110: 桥长30米，宽5米，高10米 | L110: 80 | M110: 80 | N110: 0 | O110: 1 | P110: 328 | Q110: 1042 | R110: 1 | S110: 76 | T110: 228 | U110: 新建公路桥1座，受益328户，1042人 | V110: 吸纳群众务工增收，改善交通条件，促进产业增收 | W110: 交通运输局
A111: 104 | B111: 鸡公坡村木家溪桥梁维修 | C111: 乡村建设行动 | D111: 农村基础设施 | E111: 农村桥梁建设 | F111: 新建 | G111: 岔头乡鸡公坡村 | H111: 2023.1 | I111: 2023.12 | J111: 岔头乡人民政府 | K111: 恢复修建鸡公坡村木家溪道路桥梁，长8米，宽5米 | L111: 10 | M111: 10 | N111: 0 | O111: 1 | P111: 85 | Q111: 320 | R111: 1 | S111: 19 | T111: 63 | U111: 修建桥梁1座，受益85户，320人 | V111: 吸纳群众务工增收，改善交通条件，促进产业增收 | W111: 交通运输局
A112: 105 | B112: 竹山园村边山公路涵管加大项目 | C112: 乡村建设行动 | D112: 农村基础设施 | E112: 农村公路涵管建设 | F112: 新建 | G112: 岔头乡竹山园村 | H112: 2023.1 | I112: 2023.12 | J112: 岔头乡人民政府 | K112: 边山公路涵管加大，规模：1.5米涵管，长12米，高5米 | L112: 10 | M112: 10 | N112: 0 | O112: 1 | P112: 726 | Q112: 2856 | R112: 0 | S112: 134 | T112: 476 | U112: 公路涵管加大，受益726户，2856人 | V112: 吸纳群众务工增收，改善交通条件，促进产业增收 | W112: 交通运输局
A113: 106 | B113: 竹山园村水口庵至溪边便民桥 | C113: 乡村建设行动 | D113: 农村基础设施 | E113: 农村道路桥梁建设 | F113: 恢复 | G113: 岔头乡竹山园村 | H113: 2023.1 | I113: 2023.12 | J113: 岔头乡人民政府 | K113: 水口庵至溪边便民桥，规模：长60米*宽2.5米 | L113: 80 | M113: 80 | N113: 0 | O113: 1 | P113: 726 | Q113: 2856 | R113: 0 | S113: 134 | T113: 476 | U113: 便民桥恢复，受益726户，2856人 | V113: 吸纳群众务工增收，改善生产条件，促进产业增收 | W113: 交通运输局
A114: 107 | B114: 繁溪村滑坡滩至鲢鱼塘公路硬化项目 | C114: 乡村建设行动 | D114: 农村基础设施 | E114: 农村道路桥梁建设 | F114: 新建 | G114: 岔头乡繁溪村 | H114: 2023.1 | I114: 2023.12 | J114: 岔头乡人民政府 | K114: 滑坡滩至鲢鱼塘公路硬化长380米，宽4.5米 | L114: 20 | M114: 20 | N114: 0 | O114: 1 | P114: 90 | Q114: 275 | R114: 0 | S114: 35 | T114: 110 | U114: 公路硬化，受益90户，75人 | V114: 吸纳群众务工增收，改善生产条件，促进产业增收 | W114: 交通运输局
A115: 108 | B115: 杉木田村组级公路修建 | C115: 乡村建设行动 | D115: 农村基础设施 | E115: 农村道路建设 | F115: 新建 | G115: 岔头乡杉木田村 | H115: 2023.1 | I115: 2023.12 | J115: 岔头乡人民政府 | K115: 10组大榨冲至杨开刚屋长1000米宽3.5米 | L115: 48 | M115: 48 | N115: 0 | O115: 1 | P115: 49 | Q115: 189 | R115: 0 | S115: 15 | T115: 63 | U115: 公路硬化1公里，受益1公里户189人 | V115: 吸纳群众务工增收，改善生产条件，促进产业增收 | W115: 交通运输局
A116: 109 | B116: 双松村村部桥面加宽 | C116: 乡村建设行动 | D116: 农村基础设施 | E116: 农村道路桥梁建设 | F116: 改建 | G116: 岔头乡双松村 | H116: 2023.1 | I116: 2023.12 | J116: 岔头乡人民政府 | K116: 桥面长20米，加宽2米，桥墩加固桥高7米。需投入20万元。 | L116: 20 | M116: 20 | N116: 0 | O116: 1 | P116: 200 | Q116: 800 | R116: 1 | S116: 50 | T116: 200 | U116: 桥面家宽，受益200户800人 | V116: 吸纳群众务工增收，改善出行条件，促进产业增收 | W116: 交通运输局
A117: 110 | B117: 陶家村岩湾桥至9组组级公路扩建硬化 | C117: 乡村建设行动 | D117: 农村基础设施 | E117: 农村道路建设 | F117: 改建 | G117: 岔头乡陶家村 | H117: 2023.1 | I117: 2023.12 | J117: 岔头乡人民政府 | K117: 陶家村岩湾桥至9组组级公路扩建硬化，长2公里*宽4.5米 | L117: 100 | M117: 100 | N117: 0 | O117: 1 | P117: 75 | Q117: 320 | R117: 0 | S117: 10 | T117: 46 | U117: 公路扩建硬化2公里，受益75320人 | V117: 吸纳群众务工增收，改善生产条件，促进产业增收 | W117: 交通运输局
A118: 111 | B118: 豹雾村何家楹组组级公路硬化 | C118: 乡村建设行动 | D118: 农村基础设施 | E118: 农村道路建设（通村路、通户路等） | F118: 新建 | G118: 托口镇豹雾村 | H118: 2023.1 | I118: 2023.12 | J118: 托口镇人民政府 | K118: 何家楹组级公路硬化长2公里，宽3.5米，厚20公分 | L118: 76 | M118: 76 | N118: 0 | O118: 1 | P118: 43 | Q118: 148 | R118: 0 | S118: 4 | T118: 16 | U118: 公路硬化2公里，受益43户，148人 | V118: 吸纳群众务工增收，改善交通条件，促进产业增收 | W118: 交通运输局
A119: 112 | B119: 豹雾村杆子坡组级公路硬化 | C119: 乡村建设行动 | D119: 农村基础设施 | E119: 农村道路建设（通村路、通户路等） | F119: 新建 | G119: 托口镇豹雾村 | H119: 2023.1 | I119: 2023.12 | J119: 托口镇人民政府 | K119: 竿子坡组级公路硬化长1.5公里，宽3.5米，厚20公 | L119: 58 | M119: 58 | N119: 0 | O119: 1 | P119: 15 | Q119: 51 | R119: 0 | S119: 4 | T119: 9 | U119: 公路硬化1.5公里，受益15户，51人 | V119: 吸纳群众务工增收，改善交通条件，促进产业增收 | W119: 交通运输局
A120: 113 | B120: 公路维修 | C120: 乡村建设行动 | D120: 农村基础设施 | E120: 农村道路建设（通村路、通户路等） | F120: 新建 | G120: 托口镇三里村 | H120: 2023.1 | I120: 2023.12 | J120: 托口镇人民政府 | K120: 维修大坝至牛塘坡移民点的长约7公里环库公路 | L120: 20 | M120: 20 | N120: 0 | O120: 1 | P120: 1642 | Q120: 5060 | R120: 0 | S120: 79 | T120: 263 | U120: 收益1642户，5060人 | V120: 吸纳群众务工增收，改善交通条件，促进产业增收 | W120: 交通运输局
A121: 114 | B121: 组级公路硬化 | C121: 乡村建设行动 | D121: 农村基础设施 | E121: 农村道路建设（通村路、通户路等） | F121: 新建 | G121: 托口镇王家拗村 | H121: 2023.1 | I121: 2023.12 | J121: 托口镇人民政府 | K121: 禁山坳组公路硬化，长0.5公里，宽4米，厚20厘米 | L121: 15 | M121: 15 | N121: 0 | O121: 2 | P121: 6 | Q121: 30 | R121: 0 | S121: 60 | T121: 130 | U121: 收益60户，130人 | V121: 吸纳群众务工增收，改善交通条件，促进产业增收 | W121: 交通运输局
A122: 115 | B122: 组级公路加宽及护栏安装 | C122: 乡村建设行动 | D122: 农村基础设施 | E122: 农村道路建设（通村路、通户路等） | F122: 新建 | G122: 托口镇王家拗村 | H122: 2023.1 | I122: 2023.12 | J122: 托口镇人民政府 | K122: 唐家湾公路加宽1米，长度5公里，厚20厘米，安装护栏 | L122: 50 | M122: 50 | N122: 0 | O122: 3 | P122: 30 | Q122: 100 | R122: 0 | S122: 30 | T122: 100 | U122: 收益30户，100人 | V122: 吸纳群众务工增收，改善交通条件，促进产业增收 | W122: 交通运输局
A123: 116 | B123: 菜湾地至霸王坡仙人湾道路建设 | C123: 乡村建设行动 | D123: 农村基础设施 | E123: 产业路、资源路、旅游路建设 | F123: 新建 | G123: 托口镇新塘村 | H123: 2023.1 | I123: 2023.12 | J123: 托口镇人民政府 | K123: 建设2公里道路 | L123: 25 | M123: 25 | N123: 0 | O123: 1 | P123: 520 | Q123: 1862 | R123: 0 | S123: 33 | T123: 119 | U123: 收益520户，1862人 | V123: 吸纳群众务工增收，改善交通条件，促进产业增收 | W123: 交通运输局
A124: 117 | B124: 大坳头至铲子界公路改造 | C124: 乡村建设行动 | D124: 农村基础设施 | E124: 产业路、资源路、旅游路建设 | F124: 新建 | G124: 托口镇新塘村 | H124: 2023.1 | I124: 2023.12 | J124: 托口镇人民政府 | K124: 改造硬化2.5公里道路 | L124: 30 | M124: 30 | N124: 0 | O124: 1 | P124: 520 | Q124: 1862 | R124: 0 | S124: 33 | T124: 119 | U124: 收益520户，1862人 | V124: 吸纳群众务工增收，改善交通条件，促进产业增收 | W124: 交通运输局
A125: 118 | B125: 组级公路路面扩宽 | C125: 乡村建设行动 | D125: 农村基础设施 | E125: 农村道路建设（通村路、通户路等） | F125: 扩建 | G125: 托口镇阳荆村 | H125: 2023.1 | I125: 2023.12 | J125: 托口镇人民政府 | K125: 阳荆村部至辽背组道路路面扩宽，长3公里，扩宽1.5米 | L125: 50 | M125: 50 | N125: 0 | O125: 1 | P125: 300 | Q125: 1300 | R125: 0 | S125: 13 | T125: 40 | U125: 收益300户1300人 | V125: 吸纳群众务工增收，改善交通条件，促进产业增收 | W125: 交通运输局
A126: 119 | B126: 托口镇杨柳村毛羊界组组级公路硬化 | C126: 乡村建设行动 | D126: 农村基础设施 | E126: 农村道路建设（通村路、通户路等） | F126: 新建 | G126: 托口镇杨柳村 | H126: 2023.1 | I126: 2023.12 | J126: 托口镇人民政府 | K126: 毛羊界组组级公路硬化，长2.5公里，宽3.5米，厚18公分 | L126: 60 | M126: 60 | N126: 0 | O126: 1 | P126: 35 | Q126: 80 | R126: 1 | S126: 2 | T126: 7 | U126: 公路硬化2.5公里，受益35户，80人 | V126: 吸纳群众务工增收，改善交通条件，促进产业增收 | W126: 交通运输局
A127: 120 | B127: 江市镇申坳村道路硬化 | C127: 乡村建设行动 | D127: 农村基础设施 | E127: 农村道路建设（通村、通户路） | F127: 新建 | G127: 江市镇申坳村 | H127: 2023.1 | I127: 2023.12 | J127: 江市镇人民政府 | K127: 硬化金子坡至尾水坝1.2公里道路 | L127: 42 | M127: 42 | N127: 0 | O127: 1 | P127: 70 | Q127: 320 | R127: 0 | S127: 9 | T127: 32 | U127: 公路硬化1.2公里，受益70户320人 | V127: 吸纳农户务工增收，便利群众出行 | W127: 交通运输局
A128: 121 | B128: 牛溪脑村公路硬化 | C128: 乡村建设行动 | D128: 农村基础设施 | E128: 农村道路建设 | F128: 改建 | G128: 深渡苗族乡牛溪脑村 | H128: 2023.1 | I128: 2023.12 | J128: 深渡苗族乡人民政府 | K128: 牛溪脑村2组袁明友家门口至伍朝松家门口硬化300米，3组燕水田至伍小顺家门口300米 | L128: 27 | M128: 27 | N128: 0 | O128: 1 | P128: 20 | Q128: 56 | R128: 1 | S128: 15 | T128: 40 | U128: 改善群众出行条件，促进产业增收 | V128: 吸纳群众务工 | W128: 交通运输局
A129: 122 | B129: 深渡村11组组级公路硬化 | C129: 乡村建设行动 | D129: 农村基础设施 | E129: 产业路 | F129: 改建 | G129: 深渡苗族乡深渡村 | H129: 2023.1 | I129: 2023.12 | J129: 深渡苗族乡人民政府 | K129: 深渡村龙船盘至跪阳岩11组公路硬化1100米 | L129: 46 | M129: 46 | N129: 0 | O129: 1 | P129: 15 | Q129: 80 | R129: 0 | S129: 91 | T129: 317 | U129: 改善生产条件，提高生产收入。 | V129: 吸纳群众务工 | W129: 交通运输局
A130: 123 | B130: 上坪村6组组级公路维修 | C130: 乡村建设行动 | D130: 农村基础设施 | E130: 农村道路建设 | F130: 新建 | G130: 深渡苗族乡上坪村 | H130: 2023.1 | I130: 2023.12 | J130: 深渡苗族乡人民政府 | K130: 6组公路蹋方处维修1000米 | L130: 15 | M130: 15 | N130: 0 | O130: 1 | P130: 70 | Q130: 320 | R130: 1 | S130: 15 | T130: 45 | U130: 改善群众出行条件，促进产业增收 | V130: 吸纳群众务工 | W130: 交通运输局
A131: 124 | B131: 上坪村桥梁维修 | C131: 乡村建设行动 | D131: 农村基础设施 | E131: 道路互通 | F131: 新建 | G131: 深渡苗族乡上坪村 | H131: 2023.1 | I131: 2023.12 | J131: 深渡苗族乡人民政府 | K131: 2组桥梁维修长80米、高15米，宽6米 | L131: 20 | M131: 20 | N131: 0 | O131: 1 | P131: 100 | Q131: 388 | R131: 1 | S131: 23 | T131: 76 | U131: 改善群众出行条件，促进产业增收 | V131: 吸纳群众务工 | W131: 交通运输局
A132: 125 | B132: 上坪村6组组级公路硬化 | C132: 乡村建设行动 | D132: 农村基础设施 | E132: 农村道路建设 | F132: 新建 | G132: 深渡苗族乡上坪村 | H132: 2023.1 | I132: 2023.12 | J132: 深渡苗族乡人民政府 | K132: 上坪村6组公路硬化1300米 | L132: 68 | M132: 68 | N132: 0 | O132: 1 | P132: 25 | Q132: 120 | R132: 1 | S132: 15 | T132: 45 | U132: 改善群众出行条件，促进产业增收 | V132: 吸纳群众务工 | W132: 交通运输局
A133: 126 | B133: 色木村组级公路硬化 | C133: 乡村建设行动 | D133: 农村基础设施 | E133: 产业路 | F133: 新建 | G133: 深渡苗族乡色木村 | H133: 2023.1 | I133: 2023.12 | J133: 深渡苗族乡人民政府 | K133: 色木村12组公路硬化1300米 | L133: 68 | M133: 68 | N133: 0 | O133: 1 | P133: 204 | Q133: 517 | R133: 0 | S133: 49 | T133: 181 | U133: 改善生产条件，提高生产收入。 | V133: 吸纳群众务工 | W133: 交通运输局
A134: 127 | B134: 合建村互通色木村公路硬化 | C134: 乡村建设行动 | D134: 农村基础设施 | E134: 产业路 | F134: 改建 | G134: 深渡苗族乡合建村 | H134: 2023.1 | I134: 2023.12 | J134: 深渡苗族乡人民政府 | K134: 合建村1组至色木村公里硬化2.6公里（备注：合建村和色木村连村公路） | L134: 91 | M134: 91 | N134: 0 | O134: 1 | P134: 72 | Q134: 220 | R134: 0 | S134: 65 | T134: 242 | U134: 改善生产条件，提高生产收入。 | V134: 吸纳群众务工 | W134: 交通运输局
A135: 128 | B135: 集中村11组公路硬化 | C135: 乡村建设行动 | D135: 农村基础设施 | E135: 产业路 | F135: 新建 | G135: 深渡苗族乡集中村 | H135: 2023.1 | I135: 2023.12 | J135: 深渡苗族乡人民政府 | K135: 11组烟竹坪至岩屋冲公路硬化700米 | L135: 30 | M135: 30 | N135: 0 | O135: 1 | P135: 326 | Q135: 898 | R135: 0 | S135: 35 | T135: 93 | U135: 改善生产条件，提高生产收入。 | V135: 吸纳群众务工 | W135: 交通运输局
A136: 129 | B136: 集中村公路涵洞维修 | C136: 乡村建设行动 | D136: 农村基础设施 | E136: 道路互通 | F136: 改建 | G136: 深渡苗族乡集中村 | H136: 2023.1 | I136: 2023.12 | J136: 深渡苗族乡人民政府 | K136: 集中6组公路涵洞维修长10米，宽3.5米，高1米 | L136: 5 | M136: 5 | N136: 0 | O136: 1 | P136: 326 | Q136: 898 | R136: 0 | S136: 35 | T136: 93 | U136: 改善群众出行条件，促进产业增收 | V136: 吸纳群众务工 | W136: 交通运输局
A137: 130 | B137: 花洋溪村团寨消防通道桥梁建设 | C137: 产业发展 | D137: 配套设施项目 | E137: 其他 | F137: 新建 | G137: 深渡苗族乡花洋溪村 | H137: 2023.1 | I137: 2023.12 | J137: 深渡苗族乡人民政府 | K137: 花洋溪村团寨消防通道桥梁修建1座，长30米 | L137: =M137+N137 -> 30 | M137: 30 | N137: 0 | O137: 1 | P137: 13 | Q137: 46 | R137: 1 | S137: 6 | T137: 23 | U137: 改善群众出行条件，促进产业增收 | V137: 吸纳群众务工 | W137: 交通运输局
A138: 131 | B138: 花洋溪村组级公路硬化 | C138: 乡村建设行动 | D138: 农村基础设施 | E138: 农村道路建设 | F138: 改建 | G138: 深渡苗族乡花洋溪村 | H138: 2023.1 | I138: 2023.12 | J138: 深渡苗族乡人民政府 | K138: 2组坳场坪至卿勇、向开武门口公路硬化600米 | L138: 30 | M138: 30 | N138: 0 | O138: 1 | P138: 7 | Q138: 27 | R138: 1 | S138: 4 | T138: 15 | U138: 改善群众出行条件，促进产业增收 | V138: 吸纳群众务工 | W138: 交通运输局
A139: 132 | B139: 清水青村1、2、8组道路硬化 | C139: 乡村建设行动 | D139: 农村基础设施 | E139: 农村道路建设 | F139: 新建 | G139: 沅河镇清水青村 | H139: 2023.1 | I139: 2023.12 | J139: 沅河镇人民政府 | K139: 1、2、8组长1500米，宽3.5米米断头路硬化 | L139: 80 | M139: 80 | N139: 0 | O139: 1 | P139: 301 | Q139: 1040 | R139: 1 | S139: 24 | T139: 85 | U139: 改善群众出行条件，促进产业增收 | V139: 吸纳群众务工，促进产业增收 | W139: 交通运输局
A140: 133 | B140: 堰桥村6.8.9.10.11.12组护栏安装项目. | C140: 乡村建设行动 | D140: 农村基础设施 | E140: 通村、组硬化路及护栏 | F140: 新建 | G140: 沅河镇堰桥村 | H140: 2023.1 | I140: 2023.12 | J140: 沅河镇人民政府 | K140: 堰桥村6.8.9.10.11.12组护栏安装项目. | L140: 50 | M140: 50 | N140: 0 | O140: 1 | P140: 100 | Q140: 268 | R140: 1 | S140: 41 | T140: 134 | U140: 改善群众出行条件，促进产业增收 | V140: 吸纳群众务工，保障群众财产安全 | W140: 交通运输局
A141: 134 | B141: 龙船塘瑶族乡光明村6组1000米公路硬化项目 | C141: 乡村建设行动 | D141: 农村基础设施 | E141: 农村道路建设 | F141: 新建 | G141: 龙船塘瑶族乡光明村 | H141: 2023.1 | I141: 2023.12 | J141: 龙船塘瑶族乡人民政府 | K141: 光明村6组庙形至向屋场至菜沙田公路硬化，长1000米，宽3.5米，厚0.15米 | L141: 40 | M141: 40 | N141: 0 | O141: 1 | P141: 221 | Q141: 673 | R141: 0 | S141: 5 | T141: 19 | U141: 改善光明村6组交通环境 | V141: 吸纳群众务工增收，改善交通条件。 | W141: 交通运输局
A142: 135 | B142: 龙船塘瑶族乡光明村7组500米公路硬化项目 | C142: 乡村建设行动 | D142: 农村基础设施 | E142: 农村道路建设 | F142: 新建 | G142: 龙船塘瑶族乡光明村 | H142: 2023.1 | I142: 2023.12 | J142: 龙船塘瑶族乡人民政府 | K142: 光明村7组矮坳至大楼背公路硬化，长500米，宽3.5米，厚0.15米 | L142: 20 | M142: 20 | N142: 0 | O142: 1 | P142: 221 | Q142: 673 | R142: 0 | S142: 9 | T142: 25 | U142: 改善光明村7组交通环境 | V142: 吸纳群众务工增收，改善交通条件。 | W142: 交通运输局
A143: 136 | B143: 白龙村硬化一组至二组连接公路 | C143: 乡村建设行动 | D143: 农村基础设施 | E143: 农村道路建设 | F143: 新建 | G143: 龙船塘瑶族乡白龙村 | H143: 2023.1 | I143: 2023.12 | J143: 龙船塘瑶族乡人民政府 | K143: 硬化长1400米，宽4米，厚18公分 | L143: 60 | M143: 57 | N143: 3 | O143: 1 | P143: 60 | Q143: 380 | R143: 1 | S143: 12 | T143: 37 | U143: 改善白龙村1组至2组交通环境 | V143: 吸纳群众务工增收，改善交通条件。 | W143: 交通运输局
A144: 137 | B144: 白龙村硬化九组至十一组连接公路 | C144: 乡村建设行动 | D144: 农村基础设施 | E144: 农村道路建设 | F144: 新建 | G144: 龙船塘瑶族乡白龙村 | H144: 2023.1 | I144: 2023.12 | J144: 龙船塘瑶族乡人民政府 | K144: 硬化长1300米，宽3.5米，厚18公分， | L144: 50 | M144: 47 | N144: 3 | O144: 1 | P144: 60 | Q144: 370 | R144: 1 | S144: 18 | T144: 45 | U144: 改善白龙村9组至11组交通环境 | V144: 吸纳群众务工增收，改善交通条件。 | W144: 交通运输局
A145: 138 | B145: 黄家村三组岩贺道路硬化 | C145: 乡村建设行动 | D145: 农村基础设施 | E145: 农村道路建设 | F145: 新建 | G145: 龙船塘瑶族乡黄家村 | H145: 2023.1 | I145: 2023.12 | J145: 龙船塘瑶族乡人民政府 | K145: 黄家村三组岩贺道路硬化1000米、宽3.5米、厚0.15米 | L145: 50 | M145: 50 | N145: 0 | O145: 1 | P145: 127 | Q145: 508 | R145: 1 | S145: 10 | T145: 41 | U145: 改善黄家村三组道路交通环境 | V145: 吸纳群众务工增收，改善交通条件。 | W145: 交通运输局
A146: 139 | B146: 黄家村四组道路硬化 | C146: 乡村建设行动 | D146: 农村基础设施 | E146: 农村道路建设 | F146: 新建 | G146: 龙船塘瑶族乡黄家村 | H146: 2023.1 | I146: 2023.12 | J146: 龙船塘瑶族乡人民政府 | K146: 黄家村四组道路硬化1500米、宽3.5米、厚0.15米 | L146: 70 | M146: 70 | N146: 0 | O146: 1 | P146: 55 | Q146: 220 | R146: 1 | S146: 5 | T146: 21 | U146: 改善黄家村四组道路交通环境 | V146: 吸纳群众务工增收，改善交通条件。 | W146: 交通运输局
A147: 140 | B147: 红心村十组公路硬化1.5公里 | C147: 乡村建设行动 | D147: 农村基础设施 | E147: 农村道路建设 | F147: 新建 | G147: 龙船塘瑶族乡红心村 | H147: 2023.1 | I147: 2023.12 | J147: 龙船塘瑶族乡人民政府 | K147: 公路硬化长1500米，宽3.5米，厚0.2米 | L147: 70 | M147: 70 | N147: 0 | O147: 1 | P147: 38 | Q147: 146 | R147: 1 | S147: 6 | T147: 21 | U147: 改善红心村十组公路路况，方便村民出行，提高运输效率 | V147: 吸纳群众务工增收，改善交通条件。 | W147: 交通运输局
A148: 141 | B148: 古楼坪村公路硬化项目 | C148: 乡村建设行动 | D148: 农村基础设施 | E148: 农村道路建设 | F148: 新建 | G148: 洗马乡古楼坪村 | H148: 2023.1 | I148: 2023.12 | J148: 洗马乡人民政府 | K148: 茶园背公路硬化全长150米，宽3米，厚0.2米。 道贯坪公路硬化全长110米，宽3米，厚0.2米。 床望庙至洪土园公路全长1800米，宽3.5米，厚0.2米。 | L148: 88.5 | M148: 88.5 | N148: 0 | O148: 1 | P148: 523 | Q148: 1593 | R148: 0 | S148: 31 | T148: 90 | U148: 公路硬化2.06千米，方便全村1593人生产生活 | V148: 吸纳群众务工增收，改善出行条件，提高生活质量 | W148: 交通运输局
A149: 142 | B149: 古楼坪村新建公路 | C149: 乡村建设行动 | D149: 农村基础设施 | E149: 农村道路建设 | F149: 新建 | G149: 洗马乡古楼坪村 | H149: 2023.1 | I149: 2023.12 | J149: 洗马乡人民政府 | K149: 上瓦几冲至下瓦几冲公路全长1500米，宽3.5米 | L149: 25 | M149: 25 | N149: 0 | O149: 1 | P149: 523 | Q149: 1593 | R149: 0 | S149: 31 | T149: 90 | U149: 新建道路1.5千米，方便全村1593人生产生活 | V149: 吸纳群众务工增收，改善出行条件，提高生活质量 | W149: 交通运输局
A150: 143 | B150: 金鸡冲至塘冲连接公路硬化 | C150: 乡村建设行动 | D150: 农村基础设施 | E150: 农村道路建设 | F150: 新建 | G150: 洗马乡稠树脚村 | H150: 2023.1 | I150: 2023.12 | J150: 洗马乡人民政府 | K150: 金鸡冲至塘冲连接公路硬化全长2.4公里，路基宽3.5米，厚度0.18米。 | L150: 84 | M150: 60 | N150: 24 | O150: 1 | P150: 489 | Q150: 1500 | R150: 0 | S150: 34 | T150: 96 | U150: 新建道路2400米，方便全村1500人生产生活 | V150: 吸纳群众务工增收，改善出行条件，提高生活质量 | W150: 交通运输局
A151: 144 | B151: 洪家冲村栗山脚至架觉田连接线公路硬化项目 | C151: 乡村建设行动 | D151: 农村基础设施 | E151: 农村道路建设 | F151: 新建 | G151: 洗马乡洪家冲村 | H151: 2023.1 | I151: 2023.12 | J151: 洗马乡人民政府 | K151: 长850米，宽3.5米，厚0.18米，回车道5个 | L151: 37 | M151: 37 | N151: 0 | O151: 1 | P151: 455 | Q151: 1304 | R151: 0 | S151: 12 | T151: 23 | U151: 公路硬化850米，方便全村1304人生产生活 | V151: 吸纳群众务工增收，改善出行条件，提高生活质量 | W151: 交通运输局
A152: 145 | B152: 洪家冲村甘田湾至黄木界公路硬化项目 | C152: 乡村建设行动 | D152: 农村基础设施 | E152: 农村道路建设 | F152: 新建 | G152: 洗马乡铁山溪村 | H152: 2023.1 | I152: 2023.12 | J152: 洗马乡人民政府 | K152: 甘田湾至黄木界公路硬化长500米，宽3.5米，厚0.18米，回车道4处 | L152: 22 | M152: 22 | N152: 0 | O152: 1 | P152: 455 | Q152: 1304 | R152: 0 | S152: 12 | T152: 23 | U152: 公路硬化500米，方便全村1304人生产生活 | V152: 吸纳群众务工增收，改善出行条件，提高生活质量 | W152: 交通运输局
A153: 146 | B153: 洗马潭村新建生产生活平板桥 | C153: 乡村建设行动 | D153: 人居环境整治 | E153: 村容村貌提升 | F153: 新建 | G153: 洗马乡洗马潭村 | H153: 2023.1 | I153: 2023.12 | J153: 洗马乡人民政府 | K153: 9组跳岩现平板桥：跨度10米，桥长16米，宽4米，高4米 | L153: 15 | M153: 15 | N153: 0 | O153: 1 | P153: 155 | Q153: 684 | R153: 1 | S153: 48 | T153: 196 | U153: 新建平板桥16米，方便全村684人生产生活 | V153: 吸纳群众务工增收，改善出行条件，提高生活质量 | W153: 交通运输局
A154: 147 | B154: 老树溪村道路硬化 | C154: 乡村建设行动 | D154: 农村基础设施 | E154: 农村道路建设 | F154: 新建 | G154: 洗马乡老树溪村 | H154: 2023.1 | I154: 2023.12 | J154: 洗马乡人民政府 | K154: 大塘1、3组至古楼坪村，长1000米，宽3.5米，厚0.2米 | L154: 35 | M154: 35 | N154: 0 | O154: 1 | P154: 480 | Q154: 1703 | R154: 0 | S154: 60 | T154: 173 | U154: 道路硬化1000米，方便1703人生产生活。 | V154: 吸纳群众务工增收，改善出行条件，提高生活质量 | W154: 交通运输局
A155: 148 | B155: 老树溪村5组至稠树脚村通畅工程 | C155: 乡村建设行动 | D155: 农村基础设施 | E155: 农村道路建设 | F155: 新建 | G155: 洗马乡老树溪村 | H155: 2023.1 | I155: 2023.12 | J155: 洗马乡人民政府 | K155: 新建老树溪村至本乡稠树脚村通达工程，长2000米，宽4米 | L155: 20 | M155: 20 | N155: 0 | O155: 1 | P155: 480 | Q155: 1703 | R155: 0 | S155: 60 | T155: 173 | U155: 新建道路2000米，方便1703人生产生活。 | V155: 吸纳群众务工增收，改善出行条件，提高生活质量 | W155: 交通运输局
A156: 149 | B156: 花柳坪村光垅至沙田新建便桥一座 | C156: 乡村建设行动 | D156: 人居环境整治 | E156: 村容村貌提升 | F156: 新建 | G156: 洗马乡花柳坪村 | H156: 2023.1 | I156: 2023.12 | J156: 洗马乡人民政府 | K156: 花柳坪村光垅至沙田新建便桥一座宽3米，长30米 | L156: 35 | M156: 35 | N156: 0 | O156: 1 | P156: 40 | Q156: 160 | R156: 0 | S156: 2 | T156: 2 | U156: 新建便桥长30米，方便全村160人去沙田进行农业生产 | V156: 吸纳群众务工增收，改善出行条件，提高生活质量 | W156: 交通运输局
A157: 150 | B157: 铁山溪村对门山公路堡坎 | C157: 乡村建设行动 | D157: 农村基础设施 | E157: 其他 | F157: 新建 | G157: 洗马乡铁山溪村 | H157: 2023.1 | I157: 2023.12 | J157: 洗马乡人民政府 | K157: 铁山溪村对门山公路堡坎100米 | L157: 36 | M157: 36 | N157: 0 | O157: 1 | P157: 217 | Q157: 616 | R157: 1 | S157: 62 | T157: 204 | U157: 砌坎100米，方便全村616人生产生活 | V157: 吸纳群众务工增收，改善灌溉条件，促进产业发展 | W157: 交通运输局
A158: 151 | B158: 中和村五棵树危桥改建 | C158: 乡村建设行动 | D158: 农村基础设施 | E158: 其他 | F158: 改建 | G158: 洗马乡中和村 | H158: 2023.1 | I158: 2023.12 | J158: 洗马乡人民政府 | K158: 中和村五棵树危桥改建项目，宽5米，长25米 | L158: 100 | M158: 100 | N158: 0 | O158: 4 | P158: 428 | Q158: 1468 | R158: 0 | S158: 13 | T158: 39 | U158: 危桥改造25米，方便全村1468人生产生活 | V158: 吸纳群众务工增收，改善出行条件，提高生活质量 | W158: 交通运输局
A159: 152 | B159: 岩背后村江布田道路硬化 | C159: 乡村建设行动 | D159: 农村基础设施 | E159: 农村道路建设 | F159: 新建 | G159: 洗马乡岩背后村 | H159: 2023.1 | I159: 2023.12 | J159: 洗马乡人民政府 | K159: 江布田至肖家垅道路硬化1500米 | L159: 45 | M159: 45 | N159: 0 | O159: 1 | P159: 247 | Q159: 741 | R159: 0 | S159: 68 | T159: 196 | U159: 道路硬化1500米，方便全村1500余人生产生活 | V159: 吸纳群众务工增收，改善出行条件，提高生活质量 | W159: 交通运输局
A160: 153 | B160: 2023年沙湾乡溪口村新建岩背公路桥 | C160: 乡村建设行动 | D160: 农村基础设施 | E160: 农村道路建设（通村路、通户路等） | F160: 新建 | G160: 沙湾乡溪口村 | H160: 2023.1 | I160: 2023.12 | J160: 沙湾乡人民政府 | K160: 新建岩背公路桥，长16米宽6米 | L160: 60 | M160: 60 | N160: 0 | O160: 3 | P160: 1200 | Q160: 5200 | R160: 0 | S160: 56 | T160: 260 | U160: 新修公路，受益户数1200户，5200人 | V160: 吸纳群众务工增收，改善交通条件，方便群众生产生活 | W160: 交通运输局
A161: 154 | B161: 2023年沙湾乡月亮村茶油湾至玉码头公路硬化 | C161: 乡村建设行动 | D161: 农村基础设施 | E161: 农村道路建设（通村路、通户路等） | F161: 新建 | G161: 沙湾乡月亮村 | H161: 2023.1 | I161: 2023.12 | J161: 沙湾乡人民政府 | K161: 月亮村4组茶油湾至玉码头公路硬化，宽3.5米，长500米 | L161: 25 | M161: 25 | N161: 0 | O161: 1 | P161: 220 | Q161: 825 | R161: 0 | S161: 32 | T161: 96 | U161: 硬化公路500米，受益户数220户，825人 | V161: 吸纳群众务工增收，改善交通条件，方便群众生产生活 | W161: 交通运输局
A162: 155 | B162: 2023年沙湾乡月亮村6组省道至梁山坳水库公路硬化 | C162: 乡村建设行动 | D162: 农村基础设施 | E162: 农村道路建设（通村路、通户路等） | F162: 改建 | G162: 沙湾乡月亮村 | H162: 2023.1 | I162: 2023.12 | J162: 沙湾乡人民政府 | K162: 月亮村6组省道至梁山坳水库公路硬化，宽3.5米，长600米 | L162: 30 | M162: 30 | N162: 0 | O162: 2 | P162: 543 | Q162: 1645 | R162: 0 | S162: 32 | T162: 96 | U162: 硬化公路600米，受益户数543户，1645人 | V162: 吸纳群众务工增收，改善交通条件，方便群众生产生活 | W162: 交通运输局
A163: 156 | B163: 2023年沙湾乡月亮村村级公路桥梁改造 | C163: 乡村建设行动 | D163: 农村基础设施 | E163: 农村道路建设（通村路、通户路等） | F163: 改建 | G163: 沙湾乡月亮村 | H163: 2023.1 | I163: 2023.12 | J163: 沙湾乡人民政府 | K163: 月亮村14组1座公路桥梁进行改建扩建 | L163: 10 | M163: 10 | N163: 0 | O163: 1 | P163: 543 | Q163: 1645 | R163: 0 | S163: 32 | T163: 96 | U163: 改扩建公路桥梁1座，受益户数543户，1645人 | V163: 吸纳群众务工增收，改善交通条件，方便群众生产生活 | W163: 交通运输局
A164: 157 | B164: 2023年沙湾乡健康村桥湾至蛇皮冲公路硬化650米 | C164: 乡村建设行动 | D164: 农村基础设施 | E164: 农村道路建设（通村路、通户路等） | F164: 新建 | G164: 沙湾乡健康村 | H164: 2023.1 | I164: 2023.12 | J164: 沙湾乡人民政府 | K164: 健康村桥湾至蛇皮冲公路硬化，宽3.5米，长650米。厚20cm | L164: 27 | M164: 27 | N164: 0 | O164: 1 | P164: 405 | Q164: 1253 | R164: 0 | S164: 22 | T164: 70 | U164: 硬化公路650米，受益户数405户，1253人 | V164: 吸纳群众务工增收，改善交通条件，方便群众生产生活 | W164: 交通运输局
A165: 158 | B165: 2023年忠心村污泥冲、木马山两处公路硬化 | C165: 乡村建设行动 | D165: 农村基础设施 | E165: 农村道路建设（通村路、通户路等） | F165: 新建 | G165: 沙湾乡忠心村 | H165: 2023.1 | I165: 2023.12 | J165: 沙湾乡人民政府 | K165: 忠心村污泥冲、木马山两处公路硬化长1500米、宽3.5米 | L165: 40 | M165: 40 | N165: 0 | O165: 1 | P165: 60 | Q165: 500 | R165: 0 | S165: 17 | T165: 41 | U165: 硬化公路1500米，受益户数60户，500人 | V165: 吸纳群众务工增收，改善交通条件，方便群众生产生活 | W165: 交通运输局
A166: 159 | B166: 2023年塘湾镇水源村组级道路硬化 | C166: 乡村建设行动 | D166: 农村基础设施 | E166: 农村道路建设（通村路、通户路等） | F166: 改建 | G166: 塘湾镇水源村 | H166: 2023.1 | I166: 2023.12 | J166: 塘湾镇人民政府 | K166: 组级道路硬化坪老组200米、社树脚组120米、其羊田组80米、相宜山组100米、九家湾组200米，合计700米。 | L166: 15 | M166: 15 | N166: 0 | O166: 1 | P166: 121 | Q166: 354 | R166: 0 | S166: 18 | T166: 39 | U166: 公路硬化0.7公里，受益121户，354人 | V166: 吸纳群众务工增收，改善交通条件，促进产业增收 | W166: 交通运输局
A167: 160 | B167: 2023年塘湾镇白羊村危桥改造 | C167: 乡村建设行动 | D167: 农村基础设施 | E167: 其他 | F167: 改建 | G167: 塘湾镇白羊村 | H167: 2023.1 | I167: 2023.12 | J167: 塘湾镇人民政府 | K167: 白羊村下江溪组东窗屋危桥改造：长12米、宽3.5米、高3米 | L167: 10 | M167: 10 | N167: 0 | O167: 1 | P167: 86 | Q167: 252 | R167: 1 | S167: 15 | T167: 50 | U167: 危桥改造长12米，受益86户，252人 | V167: 吸纳群众务工增收，改善交通条件，促进产业增收 | W167: 交通运输局
A168: 161 | B168: 2023年塘湾镇中山村组级公路硬化 | C168: 乡村建设行动 | D168: 农村基础设施 | E168: 农村道路建设（通村路、通户路等） | F168: 改建 | G168: 塘湾镇中山村 | H168: 2023.1 | I168: 2023.12 | J168: 塘湾镇人民政府 | K168: 中山村栗山组肖光信屋前至肖前友屋旁公路硬化600米 | L168: 24 | M168: 24 | N168: 0 | O168: 1 | P168: 35 | Q168: 41 | R168: 1 | S168: 9 | T168: 22 | U168: 公路硬化0.6公里，受益35户，22人 | V168: 吸纳群众务工增收，改善交通条件，促进产业增收 | W168: 交通运输局
A169: 162 | B169: 2023年塘湾镇木兰溪村拱桥修复加固 | C169: 乡村建设行动 | D169: 农村基础设施 | E169: 其他 | F169: 改建 | G169: 塘湾镇木兰溪村 | H169: 2023.1 | I169: 2023.12 | J169: 塘湾镇人民政府 | K169: 拱桥修复加固长15米，宽5米、高5.5米 | L169: 40 | M169: 40 | N169: 0 | O169: 1 | P169: 277 | Q169: 789 | R169: 0 | S169: 35 | T169: 111 | U169: 拱桥修复加固长15米，受益277户，789人 | V169: 吸纳群众务工增收，改善交通条件，促进产业增收 | W169: 交通运输局
A170: 163 | B170: 2023年塘湾镇花岩村公路提质改造工程 | C170: 乡村建设行动 | D170: 农村基础设施 | E170: 农村道路建设（通村路、通户路等） | F170: 改建 | G170: 塘湾镇花岩村 | H170: 2023.1 | I170: 2023.12 | J170: 塘湾镇人民政府 | K170: 320国道至和平组公路提质改造1500米。 | L170: 35 | M170: 35 | N170: 0 | O170: 1 | P170: 312 | Q170: 1005 | R170: 1 | S170: 71 | T170: 269 | U170: 公路提质改造1.5公里，受益312户，1005人 | V170: 吸纳群众务工增收，改善交通条件，促进产业增收 | W170: 交通运输局
A171: 164 | B171: 尚保村组级路硬化 | C171: 乡村建设行动 | D171: 农村基础设施 | E171: 产业类 | F171: 硬化 | G171: 熟坪乡尚保村 | H171: 2023.1 | I171: 2023.12 | J171: 熟坪乡人民政府 | K171: 硬化路面长500米，宽3.5米 | L171: 20 | M171: 20 | N171: 0 | O171: 1 | P171: 42 | Q171: 168 | R171: 1 | S171: 8 | T171: 28 | U171: 受益 脱贫户数及防止返贫监测对象8户28人 | V171: 吸纳群众务工 | W171: 交通运输局
A172: 165 | B172: 大垅溪村招呼站建设 | C172: 乡村建设行动 | D172: 农村基础设施 | E172: 其他 | F172: 新建 | G172: 熟坪乡大垅溪村 | H172: 2023.1 | I172: 2023.12 | J172: 熟坪乡人民政府 | K172: 大龙溪村招呼站建设，共3个。 | L172: 2 | M172: 2 | N172: 0 | O172: 1 | P172: 345 | Q172: 1150 | R172: 0 | S172: 51 | T172: 150 | U172: 受益 脱贫户数及防止返贫监测对象51户150人 | V172: 吸纳群众务工 | W172: 交通运输局
A173: 166 | B173: 熟坪社区锯同岩组组级路硬化 | C173: 乡村建设行动 | D173: 农村基础设施 | E173: 农村道路建设（通村路、通户路等） | F173: 新建 | G173: 熟坪乡熟坪社区 | H173: 2023.1 | I173: 2023.12 | J173: 熟坪乡人民政府 | K173: 锯同岩组组级“断土”路硬化，全长330米，宽3米 | L173: 13 | M173: 13 | N173: 0 | O173: 1 | P173: 28 | Q173: 79 | R173: 1 | S173: 3 | T173: 12 | U173: 受益 脱贫户数及防止返贫监测对象3户12人 | V173: 吸纳群众务工 | W173: 交通运输局
A174: 167 | B174: 下山村大盘组组级公路硬化 | C174: 乡村建设行动 | D174: 农村基础设施 | E174: 农村道路建设 | F174: 新建 | G174: 熟坪乡下山村 | H174: 2023.1 | I174: 2023.12 | J174: 熟坪乡人民政府 | K174: 组级公路硬化长1300米，宽3.5米 | L174: 55 | M174: 55 | N174: 0 | O174: 1 | P174: 52 | Q174: 210 | R174: 0 | S174: 10 | T174: 45 | U174: 受益 脱贫户数及防止返贫监测对象10户45人 | V174: 吸纳群众务工 | W174: 交通运输局
A175: 168 | B175: 网塘村改造坪地冲组杉木塘桥 | C175: 乡村建设行动 | D175: 农村基础设施 | E175: 农村道路建设 | F175: 扩建 | G175: 熟坪乡网塘村 | H175: 2023.1 | I175: 2023.12 | J175: 熟坪乡人民政府 | K175: 新建坪地冲组沙木塘桥长29米、宽1.5米，5个桥墩在原来基础上扩建，新修2个桥墩，规格都为长3.7米、宽1.5米、高1.2米。 | L175: 10 | M175: 10 | N175: 0 | O175: 1 | P175: 408 | Q175: 1176 | R175: 0 | S175: 7 | T175: 15 | U175: 受益 脱贫户数及防止返贫监测对象7户15人 | V175: 吸纳群众务工、产业受益分红 | W175: 交通运输局
A176: 169 | B176: 江市镇红莲洑水村莲塘组莲塘堤面至大礼堂道路建设 | C176: 乡村建设行动 | D176: 农村基础设施 | E176: 农村道路建设 | F176: 改建 | G176: 江市镇红莲洑水村 | H176: 2023.1 | I176: 2023.12 | J176: 江市镇人民政府 | K176: 莲塘组组级道路硬化230米 | L176: 11.5 | M176: 11.5 | N176: 0 | O176: 1 | P176: 9 | Q176: 30 | R176: 0 | S176: 3 | T176: 9 | U176: 公路硬化1.5公里，受益25户，105人 | V176: 吸纳群众务工增收，改善交通条件，促进产业增收 | W176: 交通运输局
A177: 170 | B177: 江市镇红莲洑水村莲28组道路建设 | C177: 乡村建设行动 | D177: 农村基础设施 | E177: 农村道路建设 | F177: 硬化 | G177: 江市镇红莲洑水村 | H177: 2023.1 | I177: 2023.12 | J177: 江市镇人民政府 | K177: 莲28组组级道路硬化800米 | L177: 40 | M177: 40 | N177: 0 | O177: 1 | P177: 31 | Q177: 114 | R177: 0 | S177: 2 | T177: 7 | U177: 公路硬化1.5公里，受益25户，105人 | V177: 吸纳群众务工增收，改善交通条件，促进产业增收 | W177: 交通运输局
A178: 171 | B178: 岔头乡繁溪村与中方县蒋家乡水仙村双冲公路建设 | C178: 乡村建设行动 | D178: 农村基础设施 | E178: 农村道路建设 | F178: 硬化 | G178: 岔头乡繁溪村 | H178: 2023.1 | I178: 2023.12 | J178: 岔头乡人民政府 | K178: 道路硬化长2公里，宽4.5米 | L178: 120 | M178: 120 | N178: 0 | O178: 2 | P178: 668 | Q178: 2268 | R178: 0 | S178: 118 | T178: 425 | U178: 公路硬化2公里，受益668户，2268人 | V178: 吸纳群众务工增收，改善交通条件，促进产业增收 | W178: 交通运输局
A179: 172 | B179: 塘湾镇文峰村横江庙便桥 | C179: 乡村建设行动 | D179: 农村基础设施 | E179: 农村道路建设桥梁建设 | F179: 改建 | G179: 塘湾镇文峰村 | H179: 2023.1 | I179: 2023.12 | J179: 塘湾镇人民政府 | K179: 修建一座跨度为12米的便桥 | L179: 38 | M179: 38 | N179: 0 | O179: 2 | P179: 800 | Q179: 2400 | R179: 0 | S179: 59 | T179: 193 | U179: 修建便桥一座受益2400人 | V179: 吸纳群众务工增收，改善交通条件，促进产业增收 | W179: 交通运输局
A180: 173 | B180: 湾溪乡堙上村桂花现溪边公路道路建设 | C180: 乡村建设行动 | D180: 农村基础设施 | E180: 农村道路建设 | F180: 硬化 | G180: 湾溪乡堙上村 | H180: 2023.1 | I180: 2023.12 | J180: 湾溪乡人民政府 | K180: 组级道路硬化300米 | L180: 15 | M180: 15 | N180: 0 | O180: 1 | P180: 92 | Q180: 326 | R180: 1 | S180: 52 | T180: 200 | U180: 黄桃产业基地、桂花树现溪边道路建设，受益92户，326人 | V180: 吸纳群众务工增收，改善生产条件，促进产业增收 | W180: 交通运输局
A181: 174 | B181: 江市镇申坳村14组道路建设 | C181: 乡村建设行动 | D181: 农村基础设施 | E181: 农村道路建设（通村、通户路） | F181: 新建 | G181: 江市镇申坳村 | H181: 2023.1 | I181: 2023.12 | J181: 江市镇人民政府 | K181: 组级道路硬化1300米 | L181: 65 | M181: 65 | N181: 0 | O181: 1 | P181: 70 | Q181: 320 | R181: 0 | S181: 9 | T181: 32 | U181: 公路硬化1.2公里，受益70户320人 | V181: 吸纳农户务工增收，便利群众出行 | W181: 交通运输局
A182: 175 | B182: 岩垅乡星火村湖南红利科技有限公司柑橘基地产业路硬化项目 | C182: 乡村建设行动 | D182: 农村基础设施 | E182: 农村道路建设（通村、通户路） | F182: 硬化 | G182: 岩垅乡星火村 | H182: 2023.1 | I182: 2023.12 | J182: 岩垅乡人民政府 | K182: 组级道路硬化3000米 | L182: 150 | M182: 150 | N182: 0 | O182: 1 | P182: 25 | Q182: 100 | R182: 0 | S182: 2 | T182: 7 | U182: 产业路硬化 | V182: 促进产业振兴 | W182: 交通运输局
A183: 176 | B183: 大沅村龙岩江公路涵洞改造项目 | C183: 乡村建设行动 | D183: 农村基础设施 | E183: 农村桥梁建设 | F183: 改建 | G183: 岔头乡大沅村 | H183: 2023.1 | I183: 2023.12 | J183: 岔头乡人民政府 | K183: 改建涵洞 | L183: 80 | M183: 80 | N183: 0 | O183: 1 | P183: 328 | Q183: 1042 | R183: 1 | S183: 76 | T183: 228 | U183: 改建公路桥1座，受益328户，1042人 | V183: 吸纳群众务工增收，改善交通条件，促进产业增收 | W183: 交通运输局
A184: 177 | B184: 沙湾乡沙湾社区活页岩柑桔、渔业产业路 | C184: 乡村建设行动 | D184: 农村基础设施 | E184: 产业路 | F184: 新建 | G184: 沙湾乡沙湾社区 | H184: 2023.1 | I184: 2023.12 | J184: 沙湾乡人民政府 | K184: 0（Y199沙湾中学入口）-1.88公里处水泥路扩宽并硬化，长度1.88公里，1.88公里-活页岩（2.5公里处），长度0.62公里，加宽路基 | L184: 32.5 | M184: 32.5 | N184: 0 | O184: 1 | P184: 15 | Q184: 50 | R184: 1 | S184: 3 | T184: 12 | U184: 产业路加宽及硬化2.5公里 | V184: 吸纳群众务工、促进产业振兴 | W184: 交通运输局
A185: 178 | B185: 沙湾乡独田村六组柑桔、楠竹产业路 | C185: 乡村建设行动 | D185: 农村基础设施 | E185: 产业路 | F185: 新建 | G185: 沙湾乡独田村 | H185: 2023.1 | I185: 2023.12 | J185: 沙湾乡人民政府 | K185: 羊栏门前-上蛇皮冲:0-0.2公里，水泥路扩宽并硬化，长度0.2公里，0.2-0.85公里，扩宽路基，长度0.65公里 | L185: 33.7 | M185: 33.7 | N185: 0 | O185: 1 | P185: 300 | Q185: 1013 | R185: 0 | S185: 38 | T185: 139 | U185: 产业路加宽及硬化0.85公里 | V185: 吸纳群众务工、促进产业振兴 | W185: 交通运输局
A186: 179 | B186: 翁郎溪-安顺旅游路 | C186: 产业发展 | D186: 配套设施项目 | E186: 休闲农业与乡村旅游 | F186: 新建 | G186: 龙船塘瑶族乡翁朗溪村 | H186: 2023.1 | I186: 2023.12 | J186: 龙船塘瑶族乡人民政府 | K186: 翁朗溪-洞口县安顺村界，0-1.06公里，长度1.06公里，硬化5m宽 | L186: 67.5 | M186: 67.5 | N186: 0 | O186: 1 | P186: 23 | Q186: 74 | R186: 0 | S186: 5 | T186: 21 | U186: 公路硬化1.06公里 | V186: 吸纳群众务工、促进产业振兴 | W186: 交通运输局
A187: 180 | B187: 岳溪村三角田水稻产业路 | C187: 乡村建设行动 | D187: 农村基础设施 | E187: 产业路 | F187: 新建 | G187: 江市镇岳溪村 | H187: 2023.1 | I187: 2023.12 | J187: 江市镇人民政府 | K187: 烟坡脚-三角田，硬化长度0.51公里 | L187: 25.5 | M187: 25.5 | N187: 0 | O187: 1 | P187: 44 | Q187: 148 | R187: 0 | S187: 8 | T187: 35 | U187: 产业路加宽及硬化0.51公里 | V187: 吸纳群众务工、促进产业振兴 | W187: 交通运输局
A188: 181 | B188: 岳溪村十三组水稻产业路 | C188: 乡村建设行动 | D188: 农村基础设施 | E188: 产业路 | F188: 新建 | G188: 江市镇岳溪村 | H188: 2023.1 | I188: 2023.12 | J188: 江市镇人民政府 | K188: 桥脚塘-十三组蒲家，0-0.3km水泥路扩宽并硬化，长度0.3公里，0.3-1.04公里，长度0.74公里，加宽路基并硬化 | L188: 40.52 | M188: 40.52 | N188: 0 | O188: 1 | P188: 44 | Q188: 148 | R188: 0 | S188: 7 | T188: 37 | U188: 产业路加宽及硬化1.04公里 | V188: 吸纳群众务工、促进产业振兴 | W188: 交通运输局
A189: 182 | B189: 青树村柑桔水稻产业路 | C189: 乡村建设行动 | D189: 农村基础设施 | E189: 产业路 | F189: 新建 | G189: 岩垅乡青树村 | H189: 2023.1 | I189: 2023.12 | J189: 岩垅乡人民政府 | K189: C740灰杉线路边-冲头水库，0-0.68km水泥路扩宽并硬化，长度0.68km，0.68-2.12km加宽路基并硬化，长度1.44km | L189: 79.99 | M189: 79.99 | N189: 0 | O189: 1 | P189: 37 | Q189: 130 | R189: 0 | S189: 6 | T189: 30 | U189: 产业路加宽及硬化2.12公里 | V189: 吸纳群众务工、促进产业振兴 | W189: 交通运输局
A190: 183 | B190: 泥溪八九组制种、林木产业路 | C190: 乡村建设行动 | D190: 农村基础设施 | E190: 产业路 | F190: 新建 | G190: 黔城镇泥溪村 | H190: 2023.1 | I190: 2023.12 | J190: 黔城镇人民政府 | K190: G209国道-白竹溪，扩宽路基并硬化，长度0.445公里 | L190: 22.5 | M190: 22.5 | N190: 0 | O190: 1 | P190: 52 | Q190: 168 | R190: 0 | S190: 8 | T190: 24 | U190: 产业路加宽及硬化0.445公里 | V190: 吸纳群众务工、促进产业振兴 | W190: 交通运输局
A191: 184 | B191: 泥溪梅子湾柑桔产业路 | C191: 乡村建设行动 | D191: 农村基础设施 | E191: 产业路 | F191: 新建 | G191: 黔城镇泥溪村 | H191: 2023.1 | I191: 2023.12 | J191: 黔城镇人民政府 | K191: 梅子湾-坳颈上，扩宽路基并硬化，长度1.745公里 | L191: 87.5 | M191: 87.5 | N191: 0 | O191: 1 | P191: 52 | Q191: 168 | R191: 0 | S191: 8 | T191: 24 | U191: 产业路加宽及硬化1.745公里 | V191: 吸纳群众务工、促进产业振兴 | W191: 交通运输局
A192: 185 | B192: 泥溪二十七组柑桔产业路 | C192: 乡村建设行动 | D192: 农村基础设施 | E192: 产业路 | F192: 新建 | G192: 黔城镇泥溪村 | H192: 2023.1 | I192: 2023.12 | J192: 黔城镇人民政府 | K192: 何家-汤家，扩宽路基并硬化，长度0.365公里 | L192: 18.5 | M192: 18.5 | N192: 0 | O192: 1 | P192: 52 | Q192: 168 | R192: 0 | S192: 8 | T192: 24 | U192: 产业路加宽及硬化0.365公里 | V192: 吸纳群众务工、促进产业振兴 | W192: 交通运输局
A193: 186 | B193: 株山村林木产业路 | C193: 乡村建设行动 | D193: 农村基础设施 | E193: 产业路 | F193: 新建 | G193: 黔城镇株山村 | H193: 2023.1 | I193: 2023.12 | J193: 黔城镇人民政府 | K193: G209国道（井冲）-八组涵洞，扩宽路基并硬化，长度0.9公里 | L193: 54 | M193: 54 | N193: 0 | O193: 1 | P193: 35 | Q193: 113 | R193: 0 | S193: 6 | T193: 24 | U193: 产业路加宽及硬化0.9公里 | V193: 吸纳群众务工、促进产业振兴 | W193: 交通运输局
A194: 187 | B194: 株山六组林木产业路 | C194: 乡村建设行动 | D194: 农村基础设施 | E194: 产业路 | F194: 新建 | G194: 黔城镇株山村 | H194: 2023.1 | I194: 2023.12 | J194: 黔城镇人民政府 | K194: G209国道（国投公司）-平地园，0-0.08km，长度0.08公里，0.08-0.28路面维修，长度0.2公里，0.28-0.63km，长度0.35公里，扩宽路基并硬化，0.63-0.68km，长度0.05公里，新建路基并硬化 | L194: 30.58 | M194: 30.58 | N194: 0 | O194: 1 | P194: 35 | Q194: 113 | R194: 0 | S194: 6 | T194: 24 | U194: 产业路加宽及硬化0.68公里 | V194: 吸纳群众务工、促进产业振兴 | W194: 交通运输局
A195: 188 | B195: 板桥七组林木产业路 | C195: 乡村建设行动 | D195: 农村基础设施 | E195: 产业路 | F195: 新建 | G195: 黔城镇板桥村 | H195: 2023.1 | I195: 2023.12 | J195: 黔城镇人民政府 | K195: G209国道（Y347终点）-油榨田，扩宽路基并硬化，长度0.2公里 | L195: 10 | M195: 10 | N195: 0 | O195: 1 | P195: 171 | Q195: 572 | R195: 0 | S195: 9 | T195: 31 | U195: 产业路加宽及硬化0.2公里 | V195: 吸纳群众务工、促进产业振兴 | W195: 交通运输局
A196: 189 | B196: 洪江市溶溪生态水果种植产业路 | C196: 乡村建设行动 | D196: 农村基础设施 | E196: 产业路 | F196: 新建 | G196: 太平乡溶溪村 | H196: 2023.1 | I196: 2023.12 | J196: 太平乡人民政府 | K196: 羊合冲-棒冲,长度1公里，扩宽路基并硬化 | L196: 60 | M196: 60 | N196: 0 | O196: 1 | P196: 70 | Q196: 213 | R196: 0 | S196: 9 | T196: 31 | U196: 产业路加宽及硬化1公里 | V196: 吸纳群众务工、促进产业振兴 | W196: 交通运输局
A197: 190 | B197: 茅渡乡洒溪村天台山水稻种植产业路 | C197: 乡村建设行动 | D197: 农村基础设施 | E197: 产业路 | F197: 新建 | G197: 茅渡乡洒溪村 | H197: 2023.1 | I197: 2023.12 | J197: 茅渡乡人民政府 | K197: 天台山-禾梨界，长度1.7公里，扩宽路基并硬化 | L197: 85 | M197: 85 | N197: 0 | O197: 1 | P197: 86 | Q197: 306 | R197: 0 | S197: 9 | T197: 39 | U197: 产业路加宽及硬化1.7公里 | V197: 吸纳群众务工、促进产业振兴 | W197: 交通运输局
A198: 191 | B198: 双溪口村油茶产业项目 | C198: 产业发展 | D198: 生产项目 | E198: 种植业基地 | F198: 新建 | G198: 黔城镇双溪口村 | H198: 2023.1 | I198: 2023.12 | J198: 黔城镇人民政府 | K198: 19组鬼山洞油茶示范基地建设油茶种植300亩 | L198: 105 | M198: 105 | N198: 0 | O198: 1 | P198: 719 | Q198: 2542 | R198: 1 | S198: 194 | T198: 633 | U198: 完成油茶种植300亩 | V198: 带动群众就业增收 | W198: 林业局
A199: 192 | B199: 槐树湾林场油茶基地扩建 | C199: 产业发展 | D199: 生产项目 | E199: 种植业基地 | F199: 新建 | G199: 湾溪乡油榨岩村 | H199: 2023.1 | I199: 2023.12 | J199: 湾溪乡人民政府 | K199: 油榨岩村槐树湾林场开发栽种油茶120亩 | L199: 37 | M199: 37 | N199: 0 | O199: 1 | P199: 320 | Q199: 1015 | R199: 1 | S199: 76 | T199: 288 | U199: 油茶基地扩建120亩，村集体增收1万元 | V199: 吸纳群众务工增收，低收入人口分红 | W199: 林业局
A200: 193 | B200: 油茶种植基地建设 | C200: 产业发展 | D200: 生产项目 | E200: 种植业基地 | F200: 新建 | G200: 湾溪乡先锋村 | H200: 2023.1 | I200: 2023.12 | J200: 湾溪乡人民政府 | K200: 种植300亩油茶 | L200: 30 | M200: 20 | N200: 10 | O200: 1 | P200: 251 | Q200: 751 | R200: 1 | S200: 62 | T200: 206 | U200: 种植油茶300亩，投产后村集体年增收18万元 | V200: 吸纳群众务工增收，低收入人口分红 | W200: 林业局
... 410 more rows
